Workbook

Sheet Inversiones
D3: Reporte de Inversiones - Compañías de Seguros de Vida
D4: Datos a Diciembre de 2023
H5: Cifras en M$ | I5: 1
C6: Seleccionar Moneda | G6: =Moneda -> Cifras en UF | H6: Cifras en UF | I6: =1000/J6 -> 0.0271818 | J6: 36789.36
C7: Cifras en UF | G7: =VLOOKUP(G6,H5:I7,2,0) -> 0.02718177212 | H7: Cifras en US$ | I7: =1000/J7 -> 1.130467222 | J7: 884.59
C8: copiar aquí para comparar | D8: 4LIFE | E8: ALEMANA | F8: BCI | G8: BICE | H8: BNP | I8: BUPA VIDA | J8: CAMARA | K8: CF | L8: CHUBB VIDA | M8: CLC | N8: CN LIFE | O8: COLMENA | P8: CONFUTURO | Q8: CONSORCIO NACIONAL | R8: DIVINAPASTORA | S8: EUROAMERICA | T8: HELP SEGUROS | U8: MAPFRE | V8: METLIFE | W8: MUT DE CARABINEROS | X8: MUT. EJERC. Y AVIAC. | Y8: MUTUAL DE SEGUROS | Z8: OHIO | AA8: PENTA | AB8: PRINCIPAL | AC8: RENTA NACIONAL | AD8: SAVE BCJ | AE8: SECURITY PREVISION | AF8: SURA | AG8: SURAMERICANA V | AH8: ZURICH CHILE V | AI8: ZURICH SANTANDER
C9: No modificar fila | D9: 4 Life Seguros | E9: Alemana Seguros | F9: BCI Seguros Vida | G9: BICE Vida | H9: BNP Paribas Cardif | I9: Bupa | J9: Cámara | K9: CF Seguros de Vida | L9: Chubb Vida | M9: CLC | N9: CN Life | O9: Colmena Seguros | P9: Confuturo | Q9: Consorcio Nacional | R9: Divina Pastora | S9: EuroAmérica | T9: Help Seguros | U9: MAPFRE vida | V9: METLIFE | W9: MUT DE CARABINEROS | X9: MUT. EJERC. Y AVIAC. | Y9: MUTUAL DE SEGUROS | Z9: OHIO national | AA9: PENTA vida | AB9: PRINCIPAL | AC9: RENTA NACIONAL | AD9: SAVE SEGUROS | AE9: SECURITY PREVISION | AF9: SURA | AG9: SURAMERICANA | AH9: ZURICH CHILE | AI9: ZURICH SANTANDER | AJ9: TOTAL CIAS. DE SEGUROS DE VIDA
C10: TIPO DE INSTRUMENTO | D10: =PROPER(D9) -> 4 Life Seguros | E10: =PROPER(E9) -> Alemana Seguros | F10: =F9 -> BCI Seguros Vida | G10: =G9 -> BICE Vida | H10: =H9 -> BNP Paribas Cardif | I10: =PROPER(I9) -> Bupa | J10: =PROPER(J9) -> Cámara | K10: =K9 -> CF Seguros de Vida | L10: =PROPER(L9) -> Chubb Vida | M10: CLC | N10: CN Life | O10: =PROPER(O9) -> Colmena Seguros | P10: Confuturo | Q10: Consorcio Nacional | R10: Divina Pastora | S10: Euroamérica | T10: Help Seguros | U10: Mapfre Vida | V10: Metlife | W10: Mut de Carabineros | X10: Mut. Ejerc. Y Aviac. | Y10: Mutual de Seguros | Z10: Ohio National | AA10: Penta Vida | AB10: Principal | AC10: Renta Nacional | AD10: Save Seguros | AE10: Security Prevision | AF10: Sura | AG10: Suramericana | AH10: =PROPER(AH9) -> Zurich Chile | AI10: =PROPER(AI9) -> Zurich Santander | AJ10: =PROPER(AJ9) -> Total Cias. De Seguros De Vida
A11: 3 | B11: InstrumentosdelEstado | C11: Instrumentos del Estado | D11: =VLOOKUP(D$10,base!$A$8:$S$45,$A11,FALSE) -> 23934177 | E11: =VLOOKUP(E$10,base!$A$8:$S$45,$A11,FALSE) -> 3481234 | F11: =VLOOKUP(F$10,base!$A$8:$S$45,$A11,FALSE) -> 1868609 | G11: =VLOOKUP(G$10,base!$A$8:$S$45,$A11,FALSE) -> 18584926 | H11: =VLOOKUP(H$10,base!$A$8:$S$45,$A11,FALSE) -> 109893646 | I11: =VLOOKUP(I$10,base!$A$8:$S$45,$A11,FALSE) -> 6132301 | J11: =VLOOKUP(J$10,base!$A$8:$S$45,$A11,FALSE) -> 1980367 | K11: =VLOOKUP(K$10,base!$A$8:$S$45,$A11,FALSE) -> 20027097 | L11: =VLOOKUP(L$10,base!$A$8:$S$45,$A11,FALSE) -> 89402227 | M11: =VLOOKUP(M$10,base!$A$8:$S$45,$A11,FALSE) -> 2314180 | N11: =VLOOKUP(N$10,base!$A$8:$S$45,$A11,FALSE) -> 1306577 | O11: =VLOOKUP(O$10,base!$A$8:$S$45,$A11,FALSE) -> 4468977 | P11: =VLOOKUP(P$10,base!$A$8:$S$45,$A11,FALSE) -> 67860131 | Q11: =VLOOKUP(Q$10,base!$A$8:$S$45,$A11,FALSE) -> 219300839 | R11: =VLOOKUP(R$10,base!$A$8:$S$45,$A11,FALSE) -> 1463516 | S11: =VLOOKUP(S$10,base!$A$8:$S$45,$A11,FALSE) -> 132040227 | T11: =VLOOKUP(T$10,base!$A$8:$S$45,$A11,FALSE) -> 3059177 | U11: =VLOOKUP(U$10,base!$A$8:$S$45,$A11,FALSE) -> 1003463 | V11: =VLOOKUP(V$10,base!$A$8:$S$45,$A11,FALSE) -> 485673858 | W11: =VLOOKUP(W$10,base!$A$8:$S$45,$A11,FALSE) -> 4815982 | X11: =VLOOKUP(X$10,base!$A$8:$S$45,$A11,FALSE) -> 2878965 | Y11: =VLOOKUP(Y$10,base!$A$8:$S$45,$A11,FALSE) -> 10559909 | Z11: =VLOOKUP(Z$10,base!$A$8:$S$45,$A11,FALSE) -> 8836 | AA11: =VLOOKUP(AA$10,base!$A$8:$S$45,$A11,FALSE) -> 209682433 | AB11: =VLOOKUP(AB$10,base!$A$8:$S$45,$A11,FALSE) -> 48539318 | AC11: =VLOOKUP(AC$10,base!$A$8:$S$45,$A11,FALSE) -> 8708320 | AD11: =VLOOKUP(AD$10,base!$A$8:$S$45,$A11,FALSE) -> 2288466 | AE11: =VLOOKUP(AE$10,base!$A$8:$S$45,$A11,FALSE) -> 56434086 | AF11: =VLOOKUP(AF$10,base!$A$8:$S$45,$A11,FALSE) -> 51293624 | AG11: =VLOOKUP(AG$10,base!$A$8:$S$45,$A11,FALSE) -> 6350518 | AH11: =VLOOKUP(AH$10,base!$A$8:$S$45,$A11,FALSE) -> 132237349 | AI11: =VLOOKUP(AI$10,base!$A$8:$S$45,$A11,FALSE) -> 10478158 | AJ11: =VLOOKUP(AJ$10,base!$A$8:$S$45,$A11,FALSE) -> 0
A12: 4 | B12: DepÃ³sitosaplazo | C12: Depósitos a Plazo | D12: =VLOOKUP(D$10,base!$A$8:$S$45,$A12,FALSE) -> 1317458 | E12: =VLOOKUP(E$10,base!$A$8:$S$45,$A12,FALSE) -> 0 | F12: =VLOOKUP(F$10,base!$A$8:$S$45,$A12,FALSE) -> 3972680 | G12: =VLOOKUP(G$10,base!$A$8:$S$45,$A12,FALSE) -> 62792478 | H12: =VLOOKUP(H$10,base!$A$8:$S$45,$A12,FALSE) -> 3109061 | I12: =VLOOKUP(I$10,base!$A$8:$S$45,$A12,FALSE) -> 1545200 | J12: =VLOOKUP(J$10,base!$A$8:$S$45,$A12,FALSE) -> 0 | K12: =VLOOKUP(K$10,base!$A$8:$S$45,$A12,FALSE) -> 0 | L12: =VLOOKUP(L$10,base!$A$8:$S$45,$A12,FALSE) -> 0 | M12: =VLOOKUP(M$10,base!$A$8:$S$45,$A12,FALSE) -> 2890 | N12: =VLOOKUP(N$10,base!$A$8:$S$45,$A12,FALSE) -> 1140256 | O12: =VLOOKUP(O$10,base!$A$8:$S$45,$A12,FALSE) -> 1419 | P12: =VLOOKUP(P$10,base!$A$8:$S$45,$A12,FALSE) -> 618530028 | Q12: =VLOOKUP(Q$10,base!$A$8:$S$45,$A12,FALSE) -> 56747890 | R12: =VLOOKUP(R$10,base!$A$8:$S$45,$A12,FALSE) -> 441540 | S12: =VLOOKUP(S$10,base!$A$8:$S$45,$A12,FALSE) -> 26854914 | T12: =VLOOKUP(T$10,base!$A$8:$S$45,$A12,FALSE) -> 101534 | U12: =VLOOKUP(U$10,base!$A$8:$S$45,$A12,FALSE) -> 0 | V12: =VLOOKUP(V$10,base!$A$8:$S$45,$A12,FALSE) -> 0 | W12: =VLOOKUP(W$10,base!$A$8:$S$45,$A12,FALSE) -> 139558884 | X12: =VLOOKUP(X$10,base!$A$8:$S$45,$A12,FALSE) -> 9537591 | Y12: =VLOOKUP(Y$10,base!$A$8:$S$45,$A12,FALSE) -> 0 | Z12: =VLOOKUP(Z$10,base!$A$8:$S$45,$A12,FALSE) -> 31972885 | AA12: =VLOOKUP(AA$10,base!$A$8:$S$45,$A12,FALSE) -> 123948994 | AB12: =VLOOKUP(AB$10,base!$A$8:$S$45,$A12,FALSE) -> 48932446 | AC12: =VLOOKUP(AC$10,base!$A$8:$S$45,$A12,FALSE) -> 17322647 | AD12: =VLOOKUP(AD$10,base!$A$8:$S$45,$A12,FALSE) -> 4714603 | AE12: =VLOOKUP(AE$10,base!$A$8:$S$45,$A12,FALSE) -> 6979508 | AF12: =VLOOKUP(AF$10,base!$A$8:$S$45,$A12,FALSE) -> 3651050 | AG12: =VLOOKUP(AG$10,base!$A$8:$S$45,$A12,FALSE) -> 0 | AH12: =VLOOKUP(AH$10,base!$A$8:$S$45,$A12,FALSE) -> 55484573 | AI12: =VLOOKUP(AI$10,base!$A$8:$S$45,$A12,FALSE) -> 6513371 | AJ12: =VLOOKUP(AJ$10,base!$A$8:$S$45,$A12,FALSE) -> 0
A13: 5 | B13: Bonosbancarios | C13: Bonos Bancarios | D13: =VLOOKUP(D$10,base!$A$8:$S$45,$A13,FALSE) -> 78791123 | E13: =VLOOKUP(E$10,base!$A$8:$S$45,$A13,FALSE) -> 4579709 | F13: =VLOOKUP(F$10,base!$A$8:$S$45,$A13,FALSE) -> 84593368 | G13: =VLOOKUP(G$10,base!$A$8:$S$45,$A13,FALSE) -> 648811181 | H13: =VLOOKUP(H$10,base!$A$8:$S$45,$A13,FALSE) -> 99042291 | I13: =VLOOKUP(I$10,base!$A$8:$S$45,$A13,FALSE) -> 4019389 | J13: =VLOOKUP(J$10,base!$A$8:$S$45,$A13,FALSE) -> 28167755 | K13: =VLOOKUP(K$10,base!$A$8:$S$45,$A13,FALSE) -> 11549673 | L13: =VLOOKUP(L$10,base!$A$8:$S$45,$A13,FALSE) -> 63482412 | M13: =VLOOKUP(M$10,base!$A$8:$S$45,$A13,FALSE) -> 7110419 | N13: =VLOOKUP(N$10,base!$A$8:$S$45,$A13,FALSE) -> 40406943 | O13: =VLOOKUP(O$10,base!$A$8:$S$45,$A13,FALSE) -> 6611713 | P13: =VLOOKUP(P$10,base!$A$8:$S$45,$A13,FALSE) -> 1120330039 | Q13: =VLOOKUP(Q$10,base!$A$8:$S$45,$A13,FALSE) -> 500978340 | R13: =VLOOKUP(R$10,base!$A$8:$S$45,$A13,FALSE) -> 884699 | S13: =VLOOKUP(S$10,base!$A$8:$S$45,$A13,FALSE) -> 7213540 | T13: =VLOOKUP(T$10,base!$A$8:$S$45,$A13,FALSE) -> 7496463 | U13: =VLOOKUP(U$10,base!$A$8:$S$45,$A13,FALSE) -> 12000670 | V13: =VLOOKUP(V$10,base!$A$8:$S$45,$A13,FALSE) -> 1074596825 | W13: =VLOOKUP(W$10,base!$A$8:$S$45,$A13,FALSE) -> 4640946 | X13: =VLOOKUP(X$10,base!$A$8:$S$45,$A13,FALSE) -> 42795586 | Y13: =VLOOKUP(Y$10,base!$A$8:$S$45,$A13,FALSE) -> 51767849 | Z13: =VLOOKUP(Z$10,base!$A$8:$S$45,$A13,FALSE) -> 231814923 | AA13: =VLOOKUP(AA$10,base!$A$8:$S$45,$A13,FALSE) -> 504202104 | AB13: =VLOOKUP(AB$10,base!$A$8:$S$45,$A13,FALSE) -> 631082773 | AC13: =VLOOKUP(AC$10,base!$A$8:$S$45,$A13,FALSE) -> 319167853 | AD13: =VLOOKUP(AD$10,base!$A$8:$S$45,$A13,FALSE) -> 0 | AE13: =VLOOKUP(AE$10,base!$A$8:$S$45,$A13,FALSE) -> 362685183 | AF13: =VLOOKUP(AF$10,base!$A$8:$S$45,$A13,FALSE) -> 102679244 | AG13: =VLOOKUP(AG$10,base!$A$8:$S$45,$A13,FALSE) -> 27069407 | AH13: =VLOOKUP(AH$10,base!$A$8:$S$45,$A13,FALSE) -> 242528362 | AI13: =VLOOKUP(AI$10,base!$A$8:$S$45,$A13,FALSE) -> 9815811 | AJ13: =VLOOKUP(AJ$10,base!$A$8:$S$45,$A13,FALSE) -> 0
A14: 6 | B14: Letrashipotecarias | C14: Letras Hipotecarias | D14: =VLOOKUP(D$10,base!$A$8:$S$45,$A14,FALSE) -> 540126 | E14: =VLOOKUP(E$10,base!$A$8:$S$45,$A14,FALSE) -> 0 | F14: =VLOOKUP(F$10,base!$A$8:$S$45,$A14,FALSE) -> 46862 | G14: =VLOOKUP(G$10,base!$A$8:$S$45,$A14,FALSE) -> 3631726 | H14: =VLOOKUP(H$10,base!$A$8:$S$45,$A14,FALSE) -> 2598 | I14: =VLOOKUP(I$10,base!$A$8:$S$45,$A14,FALSE) -> 0 | J14: =VLOOKUP(J$10,base!$A$8:$S$45,$A14,FALSE) -> 0 | K14: =VLOOKUP(K$10,base!$A$8:$S$45,$A14,FALSE) -> 0 | L14: =VLOOKUP(L$10,base!$A$8:$S$45,$A14,FALSE) -> 0 | M14: =VLOOKUP(M$10,base!$A$8:$S$45,$A14,FALSE) -> 27084 | N14: =VLOOKUP(N$10,base!$A$8:$S$45,$A14,FALSE) -> 157999 | O14: =VLOOKUP(O$10,base!$A$8:$S$45,$A14,FALSE) -> 21869 | P14: =VLOOKUP(P$10,base!$A$8:$S$45,$A14,FALSE) -> 34675580 | Q14: =VLOOKUP(Q$10,base!$A$8:$S$45,$A14,FALSE) -> 7542736 | R14: =VLOOKUP(R$10,base!$A$8:$S$45,$A14,FALSE) -> 0 | S14: =VLOOKUP(S$10,base!$A$8:$S$45,$A14,FALSE) -> 429239 | T14: =VLOOKUP(T$10,base!$A$8:$S$45,$A14,FALSE) -> 0 | U14: =VLOOKUP(U$10,base!$A$8:$S$45,$A14,FALSE) -> 1745347 | V14: =VLOOKUP(V$10,base!$A$8:$S$45,$A14,FALSE) -> 8159380 | W14: =VLOOKUP(W$10,base!$A$8:$S$45,$A14,FALSE) -> 0 | X14: =VLOOKUP(X$10,base!$A$8:$S$45,$A14,FALSE) -> 585832 | Y14: =VLOOKUP(Y$10,base!$A$8:$S$45,$A14,FALSE) -> 6875 | Z14: =VLOOKUP(Z$10,base!$A$8:$S$45,$A14,FALSE) -> 25041411 | AA14: =VLOOKUP(AA$10,base!$A$8:$S$45,$A14,FALSE) -> 23826142 | AB14: =VLOOKUP(AB$10,base!$A$8:$S$45,$A14,FALSE) -> 34044670 | AC14: =VLOOKUP(AC$10,base!$A$8:$S$45,$A14,FALSE) -> 10986930 | AD14: =VLOOKUP(AD$10,base!$A$8:$S$45,$A14,FALSE) -> 0 | AE14: =VLOOKUP(AE$10,base!$A$8:$S$45,$A14,FALSE) -> 23720227 | AF14: =VLOOKUP(AF$10,base!$A$8:$S$45,$A14,FALSE) -> 209684 | AG14: =VLOOKUP(AG$10,base!$A$8:$S$45,$A14,FALSE) -> 0 | AH14: =VLOOKUP(AH$10,base!$A$8:$S$45,$A14,FALSE) -> 25674 | AI14: =VLOOKUP(AI$10,base!$A$8:$S$45,$A14,FALSE) -> 4091997 | AJ14: =VLOOKUP(AJ$10,base!$A$8:$S$45,$A14,FALSE) -> 0
A15: 7 | B15: Bonosydebentures | C15: Bonos y Debentures | D15: =VLOOKUP(D$10,base!$A$8:$S$45,$A15,FALSE) -> 308129458 | E15: =VLOOKUP(E$10,base!$A$8:$S$45,$A15,FALSE) -> 3037039 | F15: =VLOOKUP(F$10,base!$A$8:$S$45,$A15,FALSE) -> 73753205 | G15: =VLOOKUP(G$10,base!$A$8:$S$45,$A15,FALSE) -> 2253487379 | H15: =VLOOKUP(H$10,base!$A$8:$S$45,$A15,FALSE) -> 64754765 | I15: =VLOOKUP(I$10,base!$A$8:$S$45,$A15,FALSE) -> 0 | J15: =VLOOKUP(J$10,base!$A$8:$S$45,$A15,FALSE) -> 4324633 | K15: =VLOOKUP(K$10,base!$A$8:$S$45,$A15,FALSE) -> 0 | L15: =VLOOKUP(L$10,base!$A$8:$S$45,$A15,FALSE) -> 54528090 | M15: =VLOOKUP(M$10,base!$A$8:$S$45,$A15,FALSE) -> 3270479 | N15: =VLOOKUP(N$10,base!$A$8:$S$45,$A15,FALSE) -> 411456600 | O15: =VLOOKUP(O$10,base!$A$8:$S$45,$A15,FALSE) -> 3772776 | P15: =VLOOKUP(P$10,base!$A$8:$S$45,$A15,FALSE) -> 1776929610 | Q15: =VLOOKUP(Q$10,base!$A$8:$S$45,$A15,FALSE) -> 1945217452 | R15: =VLOOKUP(R$10,base!$A$8:$S$45,$A15,FALSE) -> 0 | S15: =VLOOKUP(S$10,base!$A$8:$S$45,$A15,FALSE) -> 696805268 | T15: =VLOOKUP(T$10,base!$A$8:$S$45,$A15,FALSE) -> 4005429 | U15: =VLOOKUP(U$10,base!$A$8:$S$45,$A15,FALSE) -> 27689145 | V15: =VLOOKUP(V$10,base!$A$8:$S$45,$A15,FALSE) -> 2476369557 | W15: =VLOOKUP(W$10,base!$A$8:$S$45,$A15,FALSE) -> 108975 | X15: =VLOOKUP(X$10,base!$A$8:$S$45,$A15,FALSE) -> 34690766 | Y15: =VLOOKUP(Y$10,base!$A$8:$S$45,$A15,FALSE) -> 110470842 | Z15: =VLOOKUP(Z$10,base!$A$8:$S$45,$A15,FALSE) -> 377540964 | AA15: =VLOOKUP(AA$10,base!$A$8:$S$45,$A15,FALSE) -> 1707611041 | AB15: =VLOOKUP(AB$10,base!$A$8:$S$45,$A15,FALSE) -> 978027900 | AC15: =VLOOKUP(AC$10,base!$A$8:$S$45,$A15,FALSE) -> 501492934 | AD15: =VLOOKUP(AD$10,base!$A$8:$S$45,$A15,FALSE) -> 12355084 | AE15: =VLOOKUP(AE$10,base!$A$8:$S$45,$A15,FALSE) -> 989425683 | AF15: =VLOOKUP(AF$10,base!$A$8:$S$45,$A15,FALSE) -> 153617546 | AG15: =VLOOKUP(AG$10,base!$A$8:$S$45,$A15,FALSE) -> 6627964 | AH15: =VLOOKUP(AH$10,base!$A$8:$S$45,$A15,FALSE) -> 1302086576 | AI15: =VLOOKUP(AI$10,base!$A$8:$S$45,$A15,FALSE) -> 75943495 | AJ15: =VLOOKUP(AJ$10,base!$A$8:$S$45,$A15,FALSE) -> 0
A16: 8 | B16: CrÃ©ditossindicados | C16: Créditos Sindicados | D16: =VLOOKUP(D$10,base!$A$8:$S$45,$A16,FALSE) -> 1690963 | E16: =VLOOKUP(E$10,base!$A$8:$S$45,$A16,FALSE) -> 0 | F16: =VLOOKUP(F$10,base!$A$8:$S$45,$A16,FALSE) -> 0 | G16: =VLOOKUP(G$10,base!$A$8:$S$45,$A16,FALSE) -> 86489841 | H16: =VLOOKUP(H$10,base!$A$8:$S$45,$A16,FALSE) -> 0 | I16: =VLOOKUP(I$10,base!$A$8:$S$45,$A16,FALSE) -> 0 | J16: =VLOOKUP(J$10,base!$A$8:$S$45,$A16,FALSE) -> 0 | K16: =VLOOKUP(K$10,base!$A$8:$S$45,$A16,FALSE) -> 0 | L16: =VLOOKUP(L$10,base!$A$8:$S$45,$A16,FALSE) -> 0 | M16: =VLOOKUP(M$10,base!$A$8:$S$45,$A16,FALSE) -> 0 | N16: =VLOOKUP(N$10,base!$A$8:$S$45,$A16,FALSE) -> 25028364 | O16: =VLOOKUP(O$10,base!$A$8:$S$45,$A16,FALSE) -> 0 | P16: =VLOOKUP(P$10,base!$A$8:$S$45,$A16,FALSE) -> 200605363 | Q16: =VLOOKUP(Q$10,base!$A$8:$S$45,$A16,FALSE) -> 231514045 | R16: =VLOOKUP(R$10,base!$A$8:$S$45,$A16,FALSE) -> 0 | S16: =VLOOKUP(S$10,base!$A$8:$S$45,$A16,FALSE) -> 35309159 | T16: =VLOOKUP(T$10,base!$A$8:$S$45,$A16,FALSE) -> 0 | U16: =VLOOKUP(U$10,base!$A$8:$S$45,$A16,FALSE) -> 0 | V16: =VLOOKUP(V$10,base!$A$8:$S$45,$A16,FALSE) -> 262754598 | W16: =VLOOKUP(W$10,base!$A$8:$S$45,$A16,FALSE) -> 0 | X16: =VLOOKUP(X$10,base!$A$8:$S$45,$A16,FALSE) -> 0 | Y16: =VLOOKUP(Y$10,base!$A$8:$S$45,$A16,FALSE) -> 0 | Z16: =VLOOKUP(Z$10,base!$A$8:$S$45,$A16,FALSE) -> 0 | AA16: =VLOOKUP(AA$10,base!$A$8:$S$45,$A16,FALSE) -> 194715578 | AB16: =VLOOKUP(AB$10,base!$A$8:$S$45,$A16,FALSE) -> 104373003 | AC16: =VLOOKUP(AC$10,base!$A$8:$S$45,$A16,FALSE) -> 0 | AD16: =VLOOKUP(AD$10,base!$A$8:$S$45,$A16,FALSE) -> 0 | AE16: =VLOOKUP(AE$10,base!$A$8:$S$45,$A16,FALSE) -> 56554536 | AF16: =VLOOKUP(AF$10,base!$A$8:$S$45,$A16,FALSE) -> 0 | AG16: =VLOOKUP(AG$10,base!$A$8:$S$45,$A16,FALSE) -> 0 | AH16: =VLOOKUP(AH$10,base!$A$8:$S$45,$A16,FALSE) -> 13349887 | AI16: =VLOOKUP(AI$10,base!$A$8:$S$45,$A16,FALSE) -> 0 | AJ16: =VLOOKUP(AJ$10,base!$A$8:$S$45,$A16,FALSE) -> 0
A17: 9 | B17: Mutuoshipotecarios | C17: Mutuos Hipotecarios | D17: =VLOOKUP(D$10,base!$A$8:$S$45,$A17,FALSE) -> 71463861 | E17: =VLOOKUP(E$10,base!$A$8:$S$45,$A17,FALSE) -> 0 | F17: =VLOOKUP(F$10,base!$A$8:$S$45,$A17,FALSE) -> 3380269 | G17: =VLOOKUP(G$10,base!$A$8:$S$45,$A17,FALSE) -> 960768095 | H17: =VLOOKUP(H$10,base!$A$8:$S$45,$A17,FALSE) -> 132161 | I17: =VLOOKUP(I$10,base!$A$8:$S$45,$A17,FALSE) -> 0 | J17: =VLOOKUP(J$10,base!$A$8:$S$45,$A17,FALSE) -> 0 | K17: =VLOOKUP(K$10,base!$A$8:$S$45,$A17,FALSE) -> 0 | L17: =VLOOKUP(L$10,base!$A$8:$S$45,$A17,FALSE) -> 0 | M17: =VLOOKUP(M$10,base!$A$8:$S$45,$A17,FALSE) -> 0 | N17: =VLOOKUP(N$10,base!$A$8:$S$45,$A17,FALSE) -> 60457833 | O17: =VLOOKUP(O$10,base!$A$8:$S$45,$A17,FALSE) -> 0 | P17: =VLOOKUP(P$10,base!$A$8:$S$45,$A17,FALSE) -> 369876397 | Q17: =VLOOKUP(Q$10,base!$A$8:$S$45,$A17,FALSE) -> 819803718 | R17: =VLOOKUP(R$10,base!$A$8:$S$45,$A17,FALSE) -> 0 | S17: =VLOOKUP(S$10,base!$A$8:$S$45,$A17,FALSE) -> 30050651 | T17: =VLOOKUP(T$10,base!$A$8:$S$45,$A17,FALSE) -> 0 | U17: =VLOOKUP(U$10,base!$A$8:$S$45,$A17,FALSE) -> 0 | V17: =VLOOKUP(V$10,base!$A$8:$S$45,$A17,FALSE) -> 1915326527 | W17: =VLOOKUP(W$10,base!$A$8:$S$45,$A17,FALSE) -> 0 | X17: =VLOOKUP(X$10,base!$A$8:$S$45,$A17,FALSE) -> 0 | Y17: =VLOOKUP(Y$10,base!$A$8:$S$45,$A17,FALSE) -> 51749832 | Z17: =VLOOKUP(Z$10,base!$A$8:$S$45,$A17,FALSE) -> 80224544 | AA17: =VLOOKUP(AA$10,base!$A$8:$S$45,$A17,FALSE) -> 697763745 | AB17: =VLOOKUP(AB$10,base!$A$8:$S$45,$A17,FALSE) -> 845416290 | AC17: =VLOOKUP(AC$10,base!$A$8:$S$45,$A17,FALSE) -> 88122345 | AD17: =VLOOKUP(AD$10,base!$A$8:$S$45,$A17,FALSE) -> 0 | AE17: =VLOOKUP(AE$10,base!$A$8:$S$45,$A17,FALSE) -> 425074412 | AF17: =VLOOKUP(AF$10,base!$A$8:$S$45,$A17,FALSE) -> 4193938 | AG17: =VLOOKUP(AG$10,base!$A$8:$S$45,$A17,FALSE) -> 0 | AH17: =VLOOKUP(AH$10,base!$A$8:$S$45,$A17,FALSE) -> 315732377 | AI17: =VLOOKUP(AI$10,base!$A$8:$S$45,$A17,FALSE) -> 17459435 | AJ17: =VLOOKUP(AJ$10,base!$A$8:$S$45,$A17,FALSE) -> 0
A18: 10 | B18: AccionesdeS.A. | C18: Acciones de S.A. | D18: =VLOOKUP(D$10,base!$A$8:$S$45,$A18,FALSE) -> 1753758 | E18: =VLOOKUP(E$10,base!$A$8:$S$45,$A18,FALSE) -> 0 | F18: =VLOOKUP(F$10,base!$A$8:$S$45,$A18,FALSE) -> 325023 | G18: =VLOOKUP(G$10,base!$A$8:$S$45,$A18,FALSE) -> 2253278 | H18: =VLOOKUP(H$10,base!$A$8:$S$45,$A18,FALSE) -> 0 | I18: =VLOOKUP(I$10,base!$A$8:$S$45,$A18,FALSE) -> 0 | J18: =VLOOKUP(J$10,base!$A$8:$S$45,$A18,FALSE) -> 0 | K18: =VLOOKUP(K$10,base!$A$8:$S$45,$A18,FALSE) -> 0 | L18: =VLOOKUP(L$10,base!$A$8:$S$45,$A18,FALSE) -> 0 | M18: =VLOOKUP(M$10,base!$A$8:$S$45,$A18,FALSE) -> 0 | N18: =VLOOKUP(N$10,base!$A$8:$S$45,$A18,FALSE) -> 8761664 | O18: =VLOOKUP(O$10,base!$A$8:$S$45,$A18,FALSE) -> 0 | P18: =VLOOKUP(P$10,base!$A$8:$S$45,$A18,FALSE) -> 39894749 | Q18: =VLOOKUP(Q$10,base!$A$8:$S$45,$A18,FALSE) -> 237460903 | R18: =VLOOKUP(R$10,base!$A$8:$S$45,$A18,FALSE) -> 0 | S18: =VLOOKUP(S$10,base!$A$8:$S$45,$A18,FALSE) -> 42781221 | T18: =VLOOKUP(T$10,base!$A$8:$S$45,$A18,FALSE) -> 0 | U18: =VLOOKUP(U$10,base!$A$8:$S$45,$A18,FALSE) -> 0 | V18: =VLOOKUP(V$10,base!$A$8:$S$45,$A18,FALSE) -> 0 | W18: =VLOOKUP(W$10,base!$A$8:$S$45,$A18,FALSE) -> 0 | X18: =VLOOKUP(X$10,base!$A$8:$S$45,$A18,FALSE) -> 1304710 | Y18: =VLOOKUP(Y$10,base!$A$8:$S$45,$A18,FALSE) -> 1088503 | Z18: =VLOOKUP(Z$10,base!$A$8:$S$45,$A18,FALSE) -> 0 | AA18: =VLOOKUP(AA$10,base!$A$8:$S$45,$A18,FALSE) -> 43639873 | AB18: =VLOOKUP(AB$10,base!$A$8:$S$45,$A18,FALSE) -> 0 | AC18: =VLOOKUP(AC$10,base!$A$8:$S$45,$A18,FALSE) -> 134026 | AD18: =VLOOKUP(AD$10,base!$A$8:$S$45,$A18,FALSE) -> 0 | AE18: =VLOOKUP(AE$10,base!$A$8:$S$45,$A18,FALSE) -> 12384745 | AF18: =VLOOKUP(AF$10,base!$A$8:$S$45,$A18,FALSE) -> 0 | AG18: =VLOOKUP(AG$10,base!$A$8:$S$45,$A18,FALSE) -> 0 | AH18: =VLOOKUP(AH$10,base!$A$8:$S$45,$A18,FALSE) -> 0 | AI18: =VLOOKUP(AI$10,base!$A$8:$S$45,$A18,FALSE) -> 0 | AJ18: =VLOOKUP(AJ$10,base!$A$8:$S$45,$A18,FALSE) -> 0
A19: 11 | B19: Fondosmutuos | C19: Fondos Mutuos | D19: =VLOOKUP(D$10,base!$A$8:$S$45,$A19,FALSE) -> 3845595 | E19: =VLOOKUP(E$10,base!$A$8:$S$45,$A19,FALSE) -> 212878 | F19: =VLOOKUP(F$10,base!$A$8:$S$45,$A19,FALSE) -> 18603788 | G19: =VLOOKUP(G$10,base!$A$8:$S$45,$A19,FALSE) -> 27938603 | H19: =VLOOKUP(H$10,base!$A$8:$S$45,$A19,FALSE) -> 4059444 | I19: =VLOOKUP(I$10,base!$A$8:$S$45,$A19,FALSE) -> 514373 | J19: =VLOOKUP(J$10,base!$A$8:$S$45,$A19,FALSE) -> 3844554 | K19: =VLOOKUP(K$10,base!$A$8:$S$45,$A19,FALSE) -> 10901 | L19: =VLOOKUP(L$10,base!$A$8:$S$45,$A19,FALSE) -> 0 | M19: =VLOOKUP(M$10,base!$A$8:$S$45,$A19,FALSE) -> 0 | N19: =VLOOKUP(N$10,base!$A$8:$S$45,$A19,FALSE) -> 25719506 | O19: =VLOOKUP(O$10,base!$A$8:$S$45,$A19,FALSE) -> 0 | P19: =VLOOKUP(P$10,base!$A$8:$S$45,$A19,FALSE) -> 69760111 | Q19: =VLOOKUP(Q$10,base!$A$8:$S$45,$A19,FALSE) -> 752726042 | R19: =VLOOKUP(R$10,base!$A$8:$S$45,$A19,FALSE) -> 0 | S19: =VLOOKUP(S$10,base!$A$8:$S$45,$A19,FALSE) -> 33436301 | T19: =VLOOKUP(T$10,base!$A$8:$S$45,$A19,FALSE) -> 0 | U19: =VLOOKUP(U$10,base!$A$8:$S$45,$A19,FALSE) -> 150736 | V19: =VLOOKUP(V$10,base!$A$8:$S$45,$A19,FALSE) -> 170602133 | W19: =VLOOKUP(W$10,base!$A$8:$S$45,$A19,FALSE) -> 15526223 | X19: =VLOOKUP(X$10,base!$A$8:$S$45,$A19,FALSE) -> 9620064 | Y19: =VLOOKUP(Y$10,base!$A$8:$S$45,$A19,FALSE) -> 4778651 | Z19: =VLOOKUP(Z$10,base!$A$8:$S$45,$A19,FALSE) -> 31327736 | AA19: =VLOOKUP(AA$10,base!$A$8:$S$45,$A19,FALSE) -> 7457738 | AB19: =VLOOKUP(AB$10,base!$A$8:$S$45,$A19,FALSE) -> 191238403 | AC19: =VLOOKUP(AC$10,base!$A$8:$S$45,$A19,FALSE) -> 14819938 | AD19: =VLOOKUP(AD$10,base!$A$8:$S$45,$A19,FALSE) -> 56715 | AE19: =VLOOKUP(AE$10,base!$A$8:$S$45,$A19,FALSE) -> 246693899 | AF19: =VLOOKUP(AF$10,base!$A$8:$S$45,$A19,FALSE) -> 455975835 | AG19: =VLOOKUP(AG$10,base!$A$8:$S$45,$A19,FALSE) -> 0 | AH19: =VLOOKUP(AH$10,base!$A$8:$S$45,$A19,FALSE) -> 289337602 | AI19: =VLOOKUP(AI$10,base!$A$8:$S$45,$A19,FALSE) -> 7480823 | AJ19: =VLOOKUP(AJ$10,base!$A$8:$S$45,$A19,FALSE) -> 0
A20: 12 | B20: FondoinversiÃ³n | C20: Fondos de Inversión | D20: =VLOOKUP(D$10,base!$A$8:$S$45,$A20,FALSE) -> 86577148 | E20: =VLOOKUP(E$10,base!$A$8:$S$45,$A20,FALSE) -> 0 | F20: =VLOOKUP(F$10,base!$A$8:$S$45,$A20,FALSE) -> 18057356 | G20: =VLOOKUP(G$10,base!$A$8:$S$45,$A20,FALSE) -> 120907502 | H20: =VLOOKUP(H$10,base!$A$8:$S$45,$A20,FALSE) -> 0 | I20: =VLOOKUP(I$10,base!$A$8:$S$45,$A20,FALSE) -> 0 | J20: =VLOOKUP(J$10,base!$A$8:$S$45,$A20,FALSE) -> 0 | K20: =VLOOKUP(K$10,base!$A$8:$S$45,$A20,FALSE) -> 0 | L20: =VLOOKUP(L$10,base!$A$8:$S$45,$A20,FALSE) -> 0 | M20: =VLOOKUP(M$10,base!$A$8:$S$45,$A20,FALSE) -> 0 | N20: =VLOOKUP(N$10,base!$A$8:$S$45,$A20,FALSE) -> 35342642 | O20: =VLOOKUP(O$10,base!$A$8:$S$45,$A20,FALSE) -> 0 | P20: =VLOOKUP(P$10,base!$A$8:$S$45,$A20,FALSE) -> 224443506 | Q20: =VLOOKUP(Q$10,base!$A$8:$S$45,$A20,FALSE) -> 271567824 | R20: =VLOOKUP(R$10,base!$A$8:$S$45,$A20,FALSE) -> 0 | S20: =VLOOKUP(S$10,base!$A$8:$S$45,$A20,FALSE) -> 79479379 | T20: =VLOOKUP(T$10,base!$A$8:$S$45,$A20,FALSE) -> 0 | U20: =VLOOKUP(U$10,base!$A$8:$S$45,$A20,FALSE) -> 1985427 | V20: =VLOOKUP(V$10,base!$A$8:$S$45,$A20,FALSE) -> 184700614 | W20: =VLOOKUP(W$10,base!$A$8:$S$45,$A20,FALSE) -> 0 | X20: =VLOOKUP(X$10,base!$A$8:$S$45,$A20,FALSE) -> 1262820 | Y20: =VLOOKUP(Y$10,base!$A$8:$S$45,$A20,FALSE) -> 3939645 | Z20: =VLOOKUP(Z$10,base!$A$8:$S$45,$A20,FALSE) -> 7276297 | AA20: =VLOOKUP(AA$10,base!$A$8:$S$45,$A20,FALSE) -> 800796901 | AB20: =VLOOKUP(AB$10,base!$A$8:$S$45,$A20,FALSE) -> 156854263 | AC20: =VLOOKUP(AC$10,base!$A$8:$S$45,$A20,FALSE) -> 1093060 | AD20: =VLOOKUP(AD$10,base!$A$8:$S$45,$A20,FALSE) -> 2688978 | AE20: =VLOOKUP(AE$10,base!$A$8:$S$45,$A20,FALSE) -> 258864832 | AF20: =VLOOKUP(AF$10,base!$A$8:$S$45,$A20,FALSE) -> 23772753 | AG20: =VLOOKUP(AG$10,base!$A$8:$S$45,$A20,FALSE) -> 0 | AH20: =VLOOKUP(AH$10,base!$A$8:$S$45,$A20,FALSE) -> 26588603 | AI20: =VLOOKUP(AI$10,base!$A$8:$S$45,$A20,FALSE) -> 6120282 | AJ20: =VLOOKUP(AJ$10,base!$A$8:$S$45,$A20,FALSE) -> 0
A21: 13 | B21: InversiÃ³nexterior | C21: Inversión Exterior | D21: =VLOOKUP(D$10,base!$A$8:$S$45,$A21,FALSE) -> 244543136 | E21: =VLOOKUP(E$10,base!$A$8:$S$45,$A21,FALSE) -> 0 | F21: =VLOOKUP(F$10,base!$A$8:$S$45,$A21,FALSE) -> 13395329 | G21: =VLOOKUP(G$10,base!$A$8:$S$45,$A21,FALSE) -> 827779023 | H21: =VLOOKUP(H$10,base!$A$8:$S$45,$A21,FALSE) -> 0 | I21: =VLOOKUP(I$10,base!$A$8:$S$45,$A21,FALSE) -> 0 | J21: =VLOOKUP(J$10,base!$A$8:$S$45,$A21,FALSE) -> 0 | K21: =VLOOKUP(K$10,base!$A$8:$S$45,$A21,FALSE) -> 0 | L21: =VLOOKUP(L$10,base!$A$8:$S$45,$A21,FALSE) -> 0 | M21: =VLOOKUP(M$10,base!$A$8:$S$45,$A21,FALSE) -> 0 | N21: =VLOOKUP(N$10,base!$A$8:$S$45,$A21,FALSE) -> 199258770 | O21: =VLOOKUP(O$10,base!$A$8:$S$45,$A21,FALSE) -> 0 | P21: =VLOOKUP(P$10,base!$A$8:$S$45,$A21,FALSE) -> 1986616971 | Q21: =VLOOKUP(Q$10,base!$A$8:$S$45,$A21,FALSE) -> 2272071686 | R21: =VLOOKUP(R$10,base!$A$8:$S$45,$A21,FALSE) -> 0 | S21: =VLOOKUP(S$10,base!$A$8:$S$45,$A21,FALSE) -> 35549044 | T21: =VLOOKUP(T$10,base!$A$8:$S$45,$A21,FALSE) -> 427767 | U21: =VLOOKUP(U$10,base!$A$8:$S$45,$A21,FALSE) -> 0 | V21: =VLOOKUP(V$10,base!$A$8:$S$45,$A21,FALSE) -> 1843017175 | W21: =VLOOKUP(W$10,base!$A$8:$S$45,$A21,FALSE) -> 0 | X21: =VLOOKUP(X$10,base!$A$8:$S$45,$A21,FALSE) -> 3003680 | Y21: =VLOOKUP(Y$10,base!$A$8:$S$45,$A21,FALSE) -> 7430692 | Z21: =VLOOKUP(Z$10,base!$A$8:$S$45,$A21,FALSE) -> 67033455 | AA21: =VLOOKUP(AA$10,base!$A$8:$S$45,$A21,FALSE) -> 1434591813 | AB21: =VLOOKUP(AB$10,base!$A$8:$S$45,$A21,FALSE) -> 713372138 | AC21: =VLOOKUP(AC$10,base!$A$8:$S$45,$A21,FALSE) -> 0 | AD21: =VLOOKUP(AD$10,base!$A$8:$S$45,$A21,FALSE) -> 0 | AE21: =VLOOKUP(AE$10,base!$A$8:$S$45,$A21,FALSE) -> 500225292 | AF21: =VLOOKUP(AF$10,base!$A$8:$S$45,$A21,FALSE) -> 311070325 | AG21: =VLOOKUP(AG$10,base!$A$8:$S$45,$A21,FALSE) -> 0 | AH21: =VLOOKUP(AH$10,base!$A$8:$S$45,$A21,FALSE) -> 225172057 | AI21: =VLOOKUP(AI$10,base!$A$8:$S$45,$A21,FALSE) -> 8387640 | AJ21: =VLOOKUP(AJ$10,base!$A$8:$S$45,$A21,FALSE) -> 0
A22: 14 | B22: Cuentascorrientes | C22: Cuentas Corrientes | D22: =VLOOKUP(D$10,base!$A$8:$S$45,$A22,FALSE) -> 712703 | E22: =VLOOKUP(E$10,base!$A$8:$S$45,$A22,FALSE) -> 176284 | F22: =VLOOKUP(F$10,base!$A$8:$S$45,$A22,FALSE) -> 7283618 | G22: =VLOOKUP(G$10,base!$A$8:$S$45,$A22,FALSE) -> 4317532 | H22: =VLOOKUP(H$10,base!$A$8:$S$45,$A22,FALSE) -> 8433357 | I22: =VLOOKUP(I$10,base!$A$8:$S$45,$A22,FALSE) -> 107506 | J22: =VLOOKUP(J$10,base!$A$8:$S$45,$A22,FALSE) -> 541722 | K22: =VLOOKUP(K$10,base!$A$8:$S$45,$A22,FALSE) -> 435098 | L22: =VLOOKUP(L$10,base!$A$8:$S$45,$A22,FALSE) -> 8934071 | M22: =VLOOKUP(M$10,base!$A$8:$S$45,$A22,FALSE) -> 625923 | N22: =VLOOKUP(N$10,base!$A$8:$S$45,$A22,FALSE) -> 2365637 | O22: =VLOOKUP(O$10,base!$A$8:$S$45,$A22,FALSE) -> 361372 | P22: =VLOOKUP(P$10,base!$A$8:$S$45,$A22,FALSE) -> 15234319 | Q22: =VLOOKUP(Q$10,base!$A$8:$S$45,$A22,FALSE) -> 13532408 | R22: =VLOOKUP(R$10,base!$A$8:$S$45,$A22,FALSE) -> 770517 | S22: =VLOOKUP(S$10,base!$A$8:$S$45,$A22,FALSE) -> 7077189 | T22: =VLOOKUP(T$10,base!$A$8:$S$45,$A22,FALSE) -> 2097277 | U22: =VLOOKUP(U$10,base!$A$8:$S$45,$A22,FALSE) -> 796447 | V22: =VLOOKUP(V$10,base!$A$8:$S$45,$A22,FALSE) -> 21033260 | W22: =VLOOKUP(W$10,base!$A$8:$S$45,$A22,FALSE) -> 3049048 | X22: =VLOOKUP(X$10,base!$A$8:$S$45,$A22,FALSE) -> 530586 | Y22: =VLOOKUP(Y$10,base!$A$8:$S$45,$A22,FALSE) -> 947258 | Z22: =VLOOKUP(Z$10,base!$A$8:$S$45,$A22,FALSE) -> 3965255 | AA22: =VLOOKUP(AA$10,base!$A$8:$S$45,$A22,FALSE) -> 657279 | AB22: =VLOOKUP(AB$10,base!$A$8:$S$45,$A22,FALSE) -> 1642089 | AC22: =VLOOKUP(AC$10,base!$A$8:$S$45,$A22,FALSE) -> 2915410 | AD22: =VLOOKUP(AD$10,base!$A$8:$S$45,$A22,FALSE) -> 1870799 | AE22: =VLOOKUP(AE$10,base!$A$8:$S$45,$A22,FALSE) -> 1869610 | AF22: =VLOOKUP(AF$10,base!$A$8:$S$45,$A22,FALSE) -> 1350646 | AG22: =VLOOKUP(AG$10,base!$A$8:$S$45,$A22,FALSE) -> 2311032 | AH22: =VLOOKUP(AH$10,base!$A$8:$S$45,$A22,FALSE) -> 10929964 | AI22: =VLOOKUP(AI$10,base!$A$8:$S$45,$A22,FALSE) -> 3959192 | AJ22: =VLOOKUP(AJ$10,base!$A$8:$S$45,$A22,FALSE) -> 0
A23: 15 | B23: Avancetened.depÃ³lizas | C23: Avance tened. de Pólizas | D23: =VLOOKUP(D$10,base!$A$8:$S$45,$A23,FALSE) -> 0 | E23: =VLOOKUP(E$10,base!$A$8:$S$45,$A23,FALSE) -> 0 | F23: =VLOOKUP(F$10,base!$A$8:$S$45,$A23,FALSE) -> 0 | G23: =VLOOKUP(G$10,base!$A$8:$S$45,$A23,FALSE) -> 14309443 | H23: =VLOOKUP(H$10,base!$A$8:$S$45,$A23,FALSE) -> 0 | I23: =VLOOKUP(I$10,base!$A$8:$S$45,$A23,FALSE) -> 0 | J23: =VLOOKUP(J$10,base!$A$8:$S$45,$A23,FALSE) -> 0 | K23: =VLOOKUP(K$10,base!$A$8:$S$45,$A23,FALSE) -> 0 | L23: =VLOOKUP(L$10,base!$A$8:$S$45,$A23,FALSE) -> 0 | M23: =VLOOKUP(M$10,base!$A$8:$S$45,$A23,FALSE) -> 0 | N23: =VLOOKUP(N$10,base!$A$8:$S$45,$A23,FALSE) -> 0 | O23: =VLOOKUP(O$10,base!$A$8:$S$45,$A23,FALSE) -> 0 | P23: =VLOOKUP(P$10,base!$A$8:$S$45,$A23,FALSE) -> 634718 | Q23: =VLOOKUP(Q$10,base!$A$8:$S$45,$A23,FALSE) -> 1038350 | R23: =VLOOKUP(R$10,base!$A$8:$S$45,$A23,FALSE) -> 0 | S23: =VLOOKUP(S$10,base!$A$8:$S$45,$A23,FALSE) -> 0 | T23: =VLOOKUP(T$10,base!$A$8:$S$45,$A23,FALSE) -> 0 | U23: =VLOOKUP(U$10,base!$A$8:$S$45,$A23,FALSE) -> 0 | V23: =VLOOKUP(V$10,base!$A$8:$S$45,$A23,FALSE) -> 4231434 | W23: =VLOOKUP(W$10,base!$A$8:$S$45,$A23,FALSE) -> 0 | X23: =VLOOKUP(X$10,base!$A$8:$S$45,$A23,FALSE) -> 0 | Y23: =VLOOKUP(Y$10,base!$A$8:$S$45,$A23,FALSE) -> 1659792 | Z23: =VLOOKUP(Z$10,base!$A$8:$S$45,$A23,FALSE) -> 1276071 | AA23: =VLOOKUP(AA$10,base!$A$8:$S$45,$A23,FALSE) -> 0 | AB23: =VLOOKUP(AB$10,base!$A$8:$S$45,$A23,FALSE) -> 0 | AC23: =VLOOKUP(AC$10,base!$A$8:$S$45,$A23,FALSE) -> 0 | AD23: =VLOOKUP(AD$10,base!$A$8:$S$45,$A23,FALSE) -> 0 | AE23: =VLOOKUP(AE$10,base!$A$8:$S$45,$A23,FALSE) -> 242743 | AF23: =VLOOKUP(AF$10,base!$A$8:$S$45,$A23,FALSE) -> 2367672 | AG23: =VLOOKUP(AG$10,base!$A$8:$S$45,$A23,FALSE) -> 0 | AH23: =VLOOKUP(AH$10,base!$A$8:$S$45,$A23,FALSE) -> 1478557 | AI23: =VLOOKUP(AI$10,base!$A$8:$S$45,$A23,FALSE) -> 0 | AJ23: =VLOOKUP(AJ$10,base!$A$8:$S$45,$A23,FALSE) -> 0
A24: 16 | B24: Inversionesinmobiliarias | C24: Inversiones Inmobiliarias | D24: =VLOOKUP(D$10,base!$A$8:$S$45,$A24,FALSE) -> 152724937 | E24: =VLOOKUP(E$10,base!$A$8:$S$45,$A24,FALSE) -> 0 | F24: =VLOOKUP(F$10,base!$A$8:$S$45,$A24,FALSE) -> 34055012 | G24: =VLOOKUP(G$10,base!$A$8:$S$45,$A24,FALSE) -> 978526409 | H24: =VLOOKUP(H$10,base!$A$8:$S$45,$A24,FALSE) -> 2932750 | I24: =VLOOKUP(I$10,base!$A$8:$S$45,$A24,FALSE) -> 0 | J24: =VLOOKUP(J$10,base!$A$8:$S$45,$A24,FALSE) -> 5998142 | K24: =VLOOKUP(K$10,base!$A$8:$S$45,$A24,FALSE) -> 0 | L24: =VLOOKUP(L$10,base!$A$8:$S$45,$A24,FALSE) -> 0 | M24: =VLOOKUP(M$10,base!$A$8:$S$45,$A24,FALSE) -> 0 | N24: =VLOOKUP(N$10,base!$A$8:$S$45,$A24,FALSE) -> 67188800 | O24: =VLOOKUP(O$10,base!$A$8:$S$45,$A24,FALSE) -> 0 | P24: =VLOOKUP(P$10,base!$A$8:$S$45,$A24,FALSE) -> 1800994771 | Q24: =VLOOKUP(Q$10,base!$A$8:$S$45,$A24,FALSE) -> 1582138533 | R24: =VLOOKUP(R$10,base!$A$8:$S$45,$A24,FALSE) -> 0 | S24: =VLOOKUP(S$10,base!$A$8:$S$45,$A24,FALSE) -> 282465576 | T24: =VLOOKUP(T$10,base!$A$8:$S$45,$A24,FALSE) -> 0 | U24: =VLOOKUP(U$10,base!$A$8:$S$45,$A24,FALSE) -> 1268189 | V24: =VLOOKUP(V$10,base!$A$8:$S$45,$A24,FALSE) -> 1557727752 | W24: =VLOOKUP(W$10,base!$A$8:$S$45,$A24,FALSE) -> 145423650 | X24: =VLOOKUP(X$10,base!$A$8:$S$45,$A24,FALSE) -> 4271150 | Y24: =VLOOKUP(Y$10,base!$A$8:$S$45,$A24,FALSE) -> 135125682 | Z24: =VLOOKUP(Z$10,base!$A$8:$S$45,$A24,FALSE) -> 116322526 | AA24: =VLOOKUP(AA$10,base!$A$8:$S$45,$A24,FALSE) -> 1303175052 | AB24: =VLOOKUP(AB$10,base!$A$8:$S$45,$A24,FALSE) -> 555093678 | AC24: =VLOOKUP(AC$10,base!$A$8:$S$45,$A24,FALSE) -> 254452044 | AD24: =VLOOKUP(AD$10,base!$A$8:$S$45,$A24,FALSE) -> 999673 | AE24: =VLOOKUP(AE$10,base!$A$8:$S$45,$A24,FALSE) -> 410380023 | AF24: =VLOOKUP(AF$10,base!$A$8:$S$45,$A24,FALSE) -> 46238537 | AG24: =VLOOKUP(AG$10,base!$A$8:$S$45,$A24,FALSE) -> 0 | AH24: =VLOOKUP(AH$10,base!$A$8:$S$45,$A24,FALSE) -> 606864210 | AI24: =VLOOKUP(AI$10,base!$A$8:$S$45,$A24,FALSE) -> 23187504 | AJ24: =VLOOKUP(AJ$10,base!$A$8:$S$45,$A24,FALSE) -> 0
A25: 17 | B25: PrÃ©stamos | C25: Préstamos | D25: =VLOOKUP(D$10,base!$A$8:$S$45,$A25,FALSE) -> 0 | E25: =VLOOKUP(E$10,base!$A$8:$S$45,$A25,FALSE) -> 0 | F25: =VLOOKUP(F$10,base!$A$8:$S$45,$A25,FALSE) -> 0 | G25: =VLOOKUP(G$10,base!$A$8:$S$45,$A25,FALSE) -> 65399471 | H25: =VLOOKUP(H$10,base!$A$8:$S$45,$A25,FALSE) -> 0 | I25: =VLOOKUP(I$10,base!$A$8:$S$45,$A25,FALSE) -> 0 | J25: =VLOOKUP(J$10,base!$A$8:$S$45,$A25,FALSE) -> 0 | K25: =VLOOKUP(K$10,base!$A$8:$S$45,$A25,FALSE) -> 0 | L25: =VLOOKUP(L$10,base!$A$8:$S$45,$A25,FALSE) -> 0 | M25: =VLOOKUP(M$10,base!$A$8:$S$45,$A25,FALSE) -> 0 | N25: =VLOOKUP(N$10,base!$A$8:$S$45,$A25,FALSE) -> 0 | O25: =VLOOKUP(O$10,base!$A$8:$S$45,$A25,FALSE) -> 0 | P25: =VLOOKUP(P$10,base!$A$8:$S$45,$A25,FALSE) -> 57325619 | Q25: =VLOOKUP(Q$10,base!$A$8:$S$45,$A25,FALSE) -> 0 | R25: =VLOOKUP(R$10,base!$A$8:$S$45,$A25,FALSE) -> 0 | S25: =VLOOKUP(S$10,base!$A$8:$S$45,$A25,FALSE) -> 2110729 | T25: =VLOOKUP(T$10,base!$A$8:$S$45,$A25,FALSE) -> 0 | U25: =VLOOKUP(U$10,base!$A$8:$S$45,$A25,FALSE) -> 0 | V25: =VLOOKUP(V$10,base!$A$8:$S$45,$A25,FALSE) -> 91907148 | W25: =VLOOKUP(W$10,base!$A$8:$S$45,$A25,FALSE) -> 79505953 | X25: =VLOOKUP(X$10,base!$A$8:$S$45,$A25,FALSE) -> 127810367 | Y25: =VLOOKUP(Y$10,base!$A$8:$S$45,$A25,FALSE) -> 11265244 | Z25: =VLOOKUP(Z$10,base!$A$8:$S$45,$A25,FALSE) -> 2365899 | AA25: =VLOOKUP(AA$10,base!$A$8:$S$45,$A25,FALSE) -> 60947831 | AB25: =VLOOKUP(AB$10,base!$A$8:$S$45,$A25,FALSE) -> 14095731 | AC25: =VLOOKUP(AC$10,base!$A$8:$S$45,$A25,FALSE) -> 4236635 | AD25: =VLOOKUP(AD$10,base!$A$8:$S$45,$A25,FALSE) -> 0 | AE25: =VLOOKUP(AE$10,base!$A$8:$S$45,$A25,FALSE) -> 10318251 | AF25: =VLOOKUP(AF$10,base!$A$8:$S$45,$A25,FALSE) -> 0 | AG25: =VLOOKUP(AG$10,base!$A$8:$S$45,$A25,FALSE) -> 0 | AH25: =VLOOKUP(AH$10,base!$A$8:$S$45,$A25,FALSE) -> 456549 | AI25: =VLOOKUP(AI$10,base!$A$8:$S$45,$A25,FALSE) -> 0 | AJ25: =VLOOKUP(AJ$10,base!$A$8:$S$45,$A25,FALSE) -> 0
A26: 18 | B26: Otros(3) | C26: Otros | D26: =VLOOKUP(D$10,base!$A$8:$S$45,$A26,FALSE) -> 8852412 | E26: =VLOOKUP(E$10,base!$A$8:$S$45,$A26,FALSE) -> 174507 | F26: =VLOOKUP(F$10,base!$A$8:$S$45,$A26,FALSE) -> 470616 | G26: =VLOOKUP(G$10,base!$A$8:$S$45,$A26,FALSE) -> 162300922 | H26: =VLOOKUP(H$10,base!$A$8:$S$45,$A26,FALSE) -> 1964126 | I26: =VLOOKUP(I$10,base!$A$8:$S$45,$A26,FALSE) -> 1177 | J26: =VLOOKUP(J$10,base!$A$8:$S$45,$A26,FALSE) -> 688044 | K26: =VLOOKUP(K$10,base!$A$8:$S$45,$A26,FALSE) -> 1000 | L26: =VLOOKUP(L$10,base!$A$8:$S$45,$A26,FALSE) -> 695912 | M26: =VLOOKUP(M$10,base!$A$8:$S$45,$A26,FALSE) -> 13938 | N26: =VLOOKUP(N$10,base!$A$8:$S$45,$A26,FALSE) -> 30256487 | O26: =VLOOKUP(O$10,base!$A$8:$S$45,$A26,FALSE) -> 21035 | P26: =VLOOKUP(P$10,base!$A$8:$S$45,$A26,FALSE) -> 137493516 | Q26: =VLOOKUP(Q$10,base!$A$8:$S$45,$A26,FALSE) -> 413126412 | R26: =VLOOKUP(R$10,base!$A$8:$S$45,$A26,FALSE) -> 64733 | S26: =VLOOKUP(S$10,base!$A$8:$S$45,$A26,FALSE) -> 13866997 | T26: =VLOOKUP(T$10,base!$A$8:$S$45,$A26,FALSE) -> 212715 | U26: =VLOOKUP(U$10,base!$A$8:$S$45,$A26,FALSE) -> 12861 | V26: =VLOOKUP(V$10,base!$A$8:$S$45,$A26,FALSE) -> 172721170 | W26: =VLOOKUP(W$10,base!$A$8:$S$45,$A26,FALSE) -> 119359 | X26: =VLOOKUP(X$10,base!$A$8:$S$45,$A26,FALSE) -> 457870 | Y26: =VLOOKUP(Y$10,base!$A$8:$S$45,$A26,FALSE) -> 3577363 | Z26: =VLOOKUP(Z$10,base!$A$8:$S$45,$A26,FALSE) -> 2631118 | AA26: =VLOOKUP(AA$10,base!$A$8:$S$45,$A26,FALSE) -> 241851284 | AB26: =VLOOKUP(AB$10,base!$A$8:$S$45,$A26,FALSE) -> 50243565 | AC26: =VLOOKUP(AC$10,base!$A$8:$S$45,$A26,FALSE) -> 2233518 | AD26: =VLOOKUP(AD$10,base!$A$8:$S$45,$A26,FALSE) -> 105146 | AE26: =VLOOKUP(AE$10,base!$A$8:$S$45,$A26,FALSE) -> 142853409 | AF26: =VLOOKUP(AF$10,base!$A$8:$S$45,$A26,FALSE) -> 1773566 | AG26: =VLOOKUP(AG$10,base!$A$8:$S$45,$A26,FALSE) -> 96281 | AH26: =VLOOKUP(AH$10,base!$A$8:$S$45,$A26,FALSE) -> 44642178 | AI26: =VLOOKUP(AI$10,base!$A$8:$S$45,$A26,FALSE) -> -610640 | AJ26: =VLOOKUP(AJ$10,base!$A$8:$S$45,$A26,FALSE) -> 0
A27: 19 | B27: TOTAL | C27: Total | D27: =SUM(D11:D26)-D50 -> 958106156.8 | E27: =SUM(E11:E26)-E50 -> 11344666.66 | F27: 252743754.7 | G27: 6068729820 | H27: 286323945.7 | I27: 11985068.04 | J27: 44307217.29 | K27: 31153306.21 | L27: 211143106.5 | M27: 13001630.98 | N27: 884143976.7 | O27: 14844389.96 | P27: 8289583964 | Q27: 9071303481 | R27: 3526470.94 | S27: 1386722649 | T27: 16927389.33 | U27: 45384193.22 | V27: 9989696667 | W27: 382073405.6 | X27: 232260339.3 | Y27: 383648512.2 | Z27: 952196349.3 | AA27: 7154949467 | AB27: 4254091566 | AC27: 1192369352 | AD27: 24397759.72 | AE27: 3409442307 | AF27: 1126712643 | AG27: 41301194.37 | AH27: 3178113992 | AI27: 168129322 | AJ27: =VLOOKUP(AJ$10,base!$A$8:$S$45,$A27,FALSE) -> 61769667078
C29: TIPO DE INSTRUMENTO | D29: =D10 -> 4 Life Seguros | E29: Alemana Seguros | F29: BCI Seguros Vida | G29: BICE Vida | H29: BNP Paribas Cardif | I29: Bupa | J29: Cámara | K29: CF Seguros de Vida | L29: Chubb Vida | M29: CLC | N29: CN Life | O29: Colmena Seguros | P29: Confuturo | Q29: Consorcio Nacional | R29: Divina Pastora | S29: Euroamérica | T29: Help Seguros | U29: Mapfre Vida | V29: Metlife | W29: Mut de Carabineros | X29: Mut. Ejerc. Y Aviac. | Y29: Mutual de Seguros | Z29: Ohio National | AA29: Penta Vida | AB29: Principal | AC29: Renta Nacional | AD29: Save Seguros | AE29: Security Prevision | AF29: Sura | AG29: Suramericana | AH29: Zurich Chile | AI29: Zurich Santander | AJ29: TOTAL MERCADO | AK29: PART% MERCADO
C30: Renta Fija | D30: =SUM(D31:D35) -> 11,249,535 | E30: =SUM(E31:E35) -> 301,663 | F30: 4,462,917 | G30: 83,452,547 | H30: 7,523,908 | I30: 317,942 | J30: 937,031 | K30: =SUM(K31:K35) -> 858,313 | L30: 5,637,846 | M30: 345,153 | N30: 13,029,276 | O30: 403,782 | P30: 102,862,762 | Q30: 80,288,392 | R30: 75,830 | S30: 24,415,296 | T30: 398,556 | U30: 1,106,115 | V30: 116,865,171 | W30: 4,053,476 | X30: 2,443,720 | Y30: 4,696,972 | Z30: 17,432,693 | AA30: 74,482,409 | AB30: 49,224,978 | AC30: 23,014,582 | AD30: 526,189 | AE30: 40,013,716 | AF30: 8,460,095 | AG30: 1,088,573 | AH30: 47,450,859 | AI30: 2,792,950 | AJ30: =SUM(D30:AI30) -> 730,213,246 | AK30: =AJ30/$AJ$50 -> 43.5%
C31: Instrumentos del Estado | D31: =$G$7*OFFSET($C$10,MATCH($C31,$C$11:$C$26,0),MATCH(D$29,$D$10:$AI$10,0)) -> 650,573 | E31: 94,626 | F31: 50,792 | G31: 505,171 | H31: 2,987,104 | I31: 166,687 | J31: 53,830 | K31: 544,372 | L31: 2,430,111 | M31: 62,904 | N31: =$G$7*OFFSET($C$10,MATCH($C31,$C$11:$C$26,0),MATCH(N$29,$D$10:$AI$10,0)) -> 35,515 | O31: 121,475 | P31: 1,844,559 | Q31: 5,960,985 | R31: 39,781 | S31: 3,589,087 | T31: 83,154 | U31: 27,276 | V31: 13,201,476 | W31: 130,907 | X31: =$G$7*OFFSET($C$10,MATCH($C31,$C$11:$C$26,0),MATCH(X$29,$D$10:$AI$10,0)) -> 78,255 | Y31: 287,037 | Z31: 240 | AA31: 5,699,540 | AB31: 1,319,385 | AC31: 236,708 | AD31: 62,205 | AE31: 1,533,978 | AF31: 1,394,252 | AG31: 172,618 | AH31: 3,594,445 | AI31: 284,815 | AJ31: 47,243,863 | AK31: =AJ31/$AJ$50 -> 2.8%
C32: Depósitos a Plazo | D32: 35,811 | E32: 0 | F32: 107,984 | G32: 1,706,811 | H32: 84,510 | I32: 42,001 | J32: 0 | K32: 0 | L32: 0 | M32: 79 | N32: 30,994 | O32: 39 | P32: 16,812,742 | Q32: 1,542,508 | R32: 12,002 | S32: 729,964 | T32: 2,760 | U32: 0 | V32: 0 | W32: 3,793,458 | X32: 259,249 | Y32: 0 | Z32: 869,080 | AA32: 3,369,153 | AB32: 1,330,071 | AC32: 470,860 | AD32: 128,151 | AE32: 189,715 | AF32: 99,242 | AG32: 0 | AH32: 1,508,169 | AI32: 177,045 | AJ32: 33,302,398 | AK32: 2.0%
C33: Bonos Bancarios | D33: 2,141,682 | E33: 124,485 | F33: 2,299,398 | G33: 17,635,838 | H33: 2,692,145 | I33: 109,254 | J33: 765,649 | K33: 313,941 | L33: 1,725,564 | M33: 193,274 | N33: 1,098,332 | O33: 179,718 | P33: 30,452,556 | Q33: 13,617,479 | R33: 24,048 | S33: 196,077 | T33: 203,767 | U33: 326,199 | V33: 29,209,446 | W33: 126,149 | X33: 1,163,260 | Y33: 1,407,142 | Z33: 6,301,140 | AA33: 13,705,107 | AB33: 17,153,948 | AC33: 8,675,548 | AD33: 0 | AE33: 9,858,426 | AF33: 2,791,004 | AG33: 735,794 | AH33: 6,592,351 | AI33: 266,811 | AJ33: 172,085,532 | AK33: 10.2%
C34: Bonos y Debentures | D34: 8,375,505 | E34: 82,552 | F34: 2,004,743 | G34: 61,253,780 | H34: 1,760,149 | I34: 0 | J34: 117,551 | K34: 0 | L34: 1,482,170 | M34: 88,897 | N34: 11,184,120 | O34: 102,551 | P34: 48,300,096 | Q34: 52,874,458 | R34: 0 | S34: 18,940,402 | T34: 108,875 | U34: 752,640 | V34: 67,312,113 | W34: 2,962 | X34: 942,956 | Y34: 3,002,793 | Z34: 10,262,232 | AA34: 46,415,894 | AB34: 26,584,532 | AC34: 13,631,467 | AD34: 335,833 | AE34: 26,894,343 | AF34: 4,175,597 | AG34: 180,160 | AH34: 35,393,021 | AI34: 2,064,279 | AJ34: 444,626,671 | AK34: 26.5%
C35: Créditos Sindicados | D35: 45,963 | E35: 0 | F35: 0 | G35: 2,350,947 | H35: 0 | I35: 0 | J35: 0 | K35: 0 | L35: 0 | M35: 0 | N35: 680,315 | O35: 0 | P35: 5,452,809 | Q35: 6,292,962 | R35: 0 | S35: 959,766 | T35: 0 | U35: 0 | V35: 7,142,136 | W35: 0 | X35: 0 | Y35: 0 | Z35: 0 | AA35: 5,292,714 | AB35: 2,837,043 | AC35: 0 | AD35: 0 | AE35: 1,537,253 | AF35: 0 | AG35: 0 | AH35: 362,874 | AI35: 0 | AJ35: 32,954,782 | AK35: 2.0%
C36: Renta Variable | D36: =SUM(D37:D39) -> 2,505,521 | E36: =SUM(E37:E39) -> 5,786 | F36: =SUM(F37:F39) -> 1,005,350 | G36: =SUM(G37:G39) -> 4,107,149 | H36: 110,343 | I36: 13,982 | J36: 104,502 | K36: =SUM(K37:K39) -> 296 | L36: 0 | M36: 0 | N36: 1,897,935 | O36: 0 | P36: 9,081,386 | Q36: 34,296,731 | R36: 0 | S36: 4,232,118 | T36: 0 | U36: 58,065 | V36: 9,657,758 | W36: 422,030 | X36: 331,280 | Y36: 266,566 | Z36: 1,049,326 | AA36: 23,156,002 | AB36: 9,461,776 | AC36: 436,187 | AD36: 74,633 | AE36: 14,078,622 | AF36: 13,040,417 | AG36: 0 | AH36: 8,587,434 | AI36: 369,702 | AJ36: 138,350,895 | AK36: 8.2%
C37: Acciones de S.A. | D37: =$G$7*OFFSET($C$10,MATCH($C37,$C$11:$C$26,0),MATCH(D$29,$D$10:$AI$10,0)) -> 47,670 | E37: 0 | F37: 8,835 | G37: 61,248 | H37: 0 | I37: 0 | J37: 0 | K37: 0 | L37: 0 | M37: 0 | N37: =$G$7*OFFSET($C$10,MATCH($C37,$C$11:$C$26,0),MATCH(N$29,$D$10:$AI$10,0)) -> 238,158 | O37: 0 | P37: 1,084,410 | Q37: 6,454,608 | R37: 0 | S37: 1,162,869 | T37: 0 | U37: 0 | V37: 0 | W37: 0 | X37: =$G$7*OFFSET($C$10,MATCH($C37,$C$11:$C$26,0),MATCH(X$29,$D$10:$AI$10,0)) -> 35,464 | Y37: 29,587 | Z37: 0 | AA37: 1,186,209 | AB37: 0 | AC37: 3,643 | AD37: 0 | AE37: 336,639 | AF37: 0 | AG37: 0 | AH37: 0 | AI37: 0 | AJ37: 10,649,341 | AK37: 0.6%
C38: Fondos Mutuos | D38: 104,530 | E38: 5,786 | F38: 505,684 | G38: 759,421 | H38: 110,343 | I38: 13,982 | J38: 104,502 | K38: 296 | L38: 0 | M38: 0 | N38: 699,102 | O38: 0 | P38: 1,896,203 | Q38: 20,460,428 | R38: 0 | S38: 908,858 | T38: 0 | U38: 4,097 | V38: 4,637,268 | W38: 422,030 | X38: 261,490 | Y38: 129,892 | Z38: 851,543 | AA38: 202,715 | AB38: 5,198,199 | AC38: 402,832 | AD38: 1,542 | AE38: 6,705,577 | AF38: 12,394,231 | AG38: 0 | AH38: 7,864,709 | AI38: 203,342 | AJ38: 64,848,603 | AK38: 3.9%
C39: Fondos de Inversión | D39: 2,353,320 | E39: 0 | F39: 490,831 | G39: 3,286,480 | H39: 0 | I39: 0 | J39: 0 | K39: 0 | L39: 0 | M39: 0 | N39: 960,676 | O39: 0 | P39: 6,100,772 | Q39: 7,381,695 | R39: 0 | S39: 2,160,390 | T39: 0 | U39: 53,967 | V39: 5,020,490 | W39: 0 | X39: 34,326 | Y39: 107,087 | Z39: 197,783 | AA39: 21,767,079 | AB39: 4,263,577 | AC39: 29,711 | AD39: 73,091 | AE39: 7,036,405 | AF39: 646,186 | AG39: 0 | AH39: 722,725 | AI39: 166,360 | AJ39: 62,852,951 | AK39: 3.7%
C40: Inversión Exterior | D40: 6,647,116 | E40: 0 | F40: 364,109 | G40: 22,500,501 | H40: 0 | I40: 0 | J40: 0 | K40: 0 | L40: 0 | M40: 0 | N40: 5,416,206 | O40: 0 | P40: 53,999,770 | Q40: 61,758,935 | R40: 0 | S40: 966,286 | T40: 11,627 | U40: 0 | V40: 50,096,473 | W40: 0 | X40: 81,645 | Y40: 201,979 | Z40: 1,822,088 | AA40: 38,994,748 | AB40: 19,390,719 | AC40: 0 | AD40: 0 | AE40: 13,597,010 | AF40: 8,455,443 | AG40: 0 | AH40: 6,120,576 | AI40: 227,991 | AJ40: 290,653,221 | AK40: 17.3%
C41: Inversiones Inmobiliarias | D41: =SUM(D42:D44) -> 6,108,530 | E41: =SUM(E42:E44) -> 0 | F41: 1,018,831 | G41: 52,812,178 | H41: 83,380 | I41: 0 | J41: 163,040 | K41: =SUM(K42:K44) -> 0 | L41: 0 | M41: 736 | N41: 3,473,956 | O41: 594 | P41: 59,950,669 | Q41: 65,494,072 | R41: 0 | S41: 8,506,412 | T41: 0 | U41: 81,913 | V41: 94,625,556 | W41: 3,952,873 | X41: 132,021 | Y41: 5,079,795 | Z41: 6,023,168 | AA41: 55,036,699 | AB41: 38,993,737 | AC41: 9,610,423 | AD41: 27,173 | AE41: 23,353,890 | AF41: 1,376,544 | AG41: 0 | AH41: 25,078,508 | AI41: 1,216,084 | AJ41: 462,200,784 | AK41: 27.5%
C42: Bienes Raíces y Leasing | D42: =$G$7*OFFSET($C$10,MATCH($C41,$C$11:$C$26,0),MATCH(D$29,$D$10:$AI$10,0)) -> 4,151,334 | E42: 0 | F42: 925,676 | G42: 26,598,082 | H42: 79,717 | I42: 0 | J42: 163,040 | K42: 0 | L42: 0 | M42: 0 | N42: 1,826,311 | O42: 0 | P42: 48,954,229 | Q42: 43,005,329 | R42: 0 | S42: 7,677,915 | T42: 0 | U42: 34,472 | V42: 42,341,801 | W42: 3,952,873 | X42: 116,097 | Y42: 3,672,955 | Z42: 3,161,852 | AA42: 35,422,607 | AB42: 15,088,430 | AC42: 6,916,457 | AD42: 27,173 | AE42: 11,154,856 | AF42: 1,256,845 | AG42: 0 | AH42: 16,495,645 | AI42: 630,277 | AJ42: 273,653,975 | AK42: 16.3%
C43: Letras Hipotecarias | D43: =$G$7*OFFSET($C$10,MATCH($C43,$C$11:$C$26,0),MATCH(D$29,$D$10:$AI$10,0)) -> 14,682 | E43: 0 | F43: 1,274 | G43: 98,717 | H43: 71 | I43: 0 | J43: 0 | K43: 0 | L43: 0 | M43: 736 | N43: =$G$7*OFFSET($C$10,MATCH($C43,$C$11:$C$26,0),MATCH(N$29,$D$10:$AI$10,0)) -> 4,295 | O43: 594 | P43: 942,544 | Q43: 205,025 | R43: 0 | S43: 11,667 | T43: 0 | U43: 47,442 | V43: 221,786 | W43: 0 | X43: =$G$7*OFFSET($C$10,MATCH($C43,$C$11:$C$26,0),MATCH(X$29,$D$10:$AI$10,0)) -> 15,924 | Y43: 187 | Z43: 680,670 | AA43: 647,637 | AB43: 925,394 | AC43: 298,644 | AD43: 0 | AE43: 644,758 | AF43: 5,700 | AG43: 0 | AH43: 698 | AI43: 111,228 | AJ43: 4,879,671 | AK43: 0.3%
C44: Mutuos Hipotecarios | D44: 1,942,514 | E44: 0 | F44: 91,882 | G44: 26,115,379 | H44: 3,592 | I44: 0 | J44: 0 | K44: 0 | L44: 0 | M44: 0 | N44: 1,643,351 | O44: 0 | P44: 10,053,896 | Q44: 22,283,718 | R44: 0 | S44: 816,830 | T44: 0 | U44: 0 | V44: 52,061,969 | W44: 0 | X44: 0 | Y44: 1,406,652 | Z44: 2,180,645 | AA44: 18,966,455 | AB44: 22,979,913 | AC44: 2,395,322 | AD44: 0 | AE44: 11,554,276 | AF44: 113,999 | AG44: 0 | AH44: 8,582,166 | AI44: 474,578 | AJ44: 183,667,137 | AK44: 10.9%
C45: Otros | D45: =SUM(D46:D49) -> 259,997 | E45: =SUM(E46:E49) -> 9,535 | F45: 210,774 | G45: 6,695,614 | H45: 282,622 | I45: 2,954 | J45: 33,427 | K45: =SUM(K46:K49) -> 11,854 | L45: 261,760 | M45: 17,393 | N45: 886,727 | O45: 10,394 | P45: 5,726,878 | Q45: 11,625,567 | R45: 22,704 | S45: 626,673 | T45: 62,790 | U45: 21,998 | V45: 7,879,806 | W45: 2,247,236 | X45: 3,500,980 | Y45: 474,313 | Z45: 278,296 | AA45: 8,248,483 | AB45: 1,793,491 | AC45: 255,116 | AD45: 53,710 | AE45: 4,220,895 | AF45: 149,279 | AG45: 65,435 | AH45: 1,563,149 | AI45: 91,020 | AJ45: 57,590,869 | AK45: =AJ45/$AJ$50 -> 3.4%
C46: Cuentas Corrientes | D46: =$G$7*OFFSET($C$10,MATCH($C46,$C$11:$C$26,0),MATCH(D$29,$D$10:$AI$10,0)) -> 19,373 | E46: 4,792 | F46: 197,982 | G46: 117,358 | H46: 229,234 | I46: 2,922 | J46: 14,725 | K46: 11,827 | L46: 242,844 | M46: 17,014 | N46: =$G$7*OFFSET($C$10,MATCH($C46,$C$11:$C$26,0),MATCH(N$29,$D$10:$AI$10,0)) -> 64,302 | O46: 9,823 | P46: 414,096 | Q46: 367,835 | R46: 20,944 | S46: 192,371 | T46: 57,008 | U46: 21,649 | V46: 571,721 | W46: 82,879 | X46: =$G$7*OFFSET($C$10,MATCH($C46,$C$11:$C$26,0),MATCH(X$29,$D$10:$AI$10,0)) -> 14,422 | Y46: 25,748 | Z46: 107,783 | AA46: 17,866 | AB46: 44,635 | AC46: 79,246 | AD46: 50,852 | AE46: 50,819 | AF46: 36,713 | AG46: 62,818 | AH46: 297,096 | AI46: 107,618 | AJ46: 3,556,311 | AK46: 0.2%
C47: Avance tened. de Pólizas | D47: 0 | E47: 0 | F47: 0 | G47: 388,956 | H47: 0 | I47: 0 | J47: 0 | K47: 0 | L47: 0 | M47: 0 | N47: 0 | O47: 0 | P47: 17,253 | Q47: 28,224 | R47: 0 | S47: 0 | T47: 0 | U47: 0 | V47: 115,018 | W47: 0 | X47: 0 | Y47: 45,116 | Z47: 34,686 | AA47: 0 | AB47: 0 | AC47: 0 | AD47: 0 | AE47: 6,598 | AF47: 64,358 | AG47: 0 | AH47: 40,190 | AI47: 0 | AJ47: 740,398 | AK47: 0.0%
C48: Préstamos | D48: 0 | E48: 0 | F48: 0 | G48: 1,777,674 | H48: 0 | I48: 0 | J48: 0 | K48: 0 | L48: 0 | M48: 0 | N48: 0 | O48: 0 | P48: 1,558,212 | Q48: 0 | R48: 0 | S48: 57,373 | T48: 0 | U48: 0 | V48: 2,498,199 | W48: 2,161,113 | X48: 3,474,112 | Y48: 306,209 | Z48: 64,309 | AA48: 1,656,670 | AB48: 383,147 | AC48: 115,159 | AD48: 0 | AE48: 280,468 | AF48: 0 | AG48: 0 | AH48: 12,410 | AI48: 0 | AJ48: 14,345,056 | AK48: 0.9%
C49: Otros | D49: 240,624 | E49: 4,743 | F49: 12,792 | G49: 4,411,627 | H49: 53,388 | I49: 32 | J49: 18,702 | K49: 27 | L49: 18,916 | M49: 379 | N49: 822,425 | O49: 572 | P49: 3,737,317 | Q49: 11,229,508 | R49: 1,760 | S49: 376,930 | T49: 5,782 | U49: 350 | V49: 4,694,867 | W49: 3,244 | X49: 12,446 | Y49: 97,239 | Z49: 71,518 | AA49: 6,573,946 | AB49: 1,365,709 | AC49: 60,711 | AD49: 2,858 | AE49: 3,883,009 | AF49: 48,209 | AG49: 2,617 | AH49: 1,213,454 | AI49: -16,598 | AJ49: 38,949,104 | AK49: 2.3%
C50: Total | D50: =SUM(D45,D40:D41,D36,D30) -> 26,770,698 | E50: =SUM(E45,E40:E41,E36,E30) -> 316,984 | F50: 7,061,980 | G50: 169,567,989 | H50: 8,000,253 | I50: 334,878 | J50: 1,238,000 | K50: =SUM(K45,K40:K41,K36,K30) -> 870,463 | L50: 5,899,606 | M50: 363,282 | N50: 24,704,101 | O50: 414,771 | P50: 231,621,464 | Q50: 253,463,697 | R50: 98,534 | S50: 38,746,785 | T50: 472,973 | U50: 1,268,092 | V50: 279,124,764 | W50: 10,675,614 | X50: 6,489,648 | Y50: 10,719,625 | Z50: 26,605,571 | AA50: 199,918,341 | AB50: 118,864,701 | AC50: 33,316,308 | AD50: 681,704 | AE50: 95,264,132 | AF50: 31,481,777 | AG50: 1,154,008 | AH50: 88,800,526 | AI50: 4,697,746 | AJ50: 1,679,009,015 | AK50: 100.0%
D51: * Notas: Elaboración propia en base a información FECU. El ítem "Bienes Raíces y Leasing" equivale al ítem reportado en FECU como "Inversiones Inmobiliarias". "Otros" incluye acciones de S.A. cerradas, muebles y útiles, caja y derechos por inversiones en instrumentos derivados.
D52: *Información descargada el 04-03-2024.
C53: Seleccionar Cuenta a Graficar | D53: 2 | E53: 3 | F53: 4 | G53: 5 | H53: 6 | I53: 7 | J53: 8 | K53: 9 | L53: 10 | M53: 11 | N53: 12 | O53: 13 | P53: 14 | Q53: 15 | R53: 16 | S53: 17 | T53: 18 | U53: 19 | V53: 20 | W53: 21 | X53: 22 | Y53: 23 | Z53: 24 | AA53: 25 | AB53: 26 | AC53: 27 | AD53: 28 | AE53: 29 | AF53: 30 | AG53: 31 | AH53: 32 | AI53: 33
C54: Total | D54: =RANK(D55,$D$55:$AI$55,0)+COUNTIF($D$55:$AI$55,D55)-1 -> 12 | E54: 31 | F54: 18 | G54: 5 | H54: 17 | I54: 30 | J54: 23 | K54: 25 | L54: 20 | M54: 29 | N54: 14 | O54: 28 | P54: 3 | Q54: 2 | R54: 32 | S54: 9 | T54: 27 | U54: 22 | V54: 1 | W54: 16 | X54: 19 | Y54: 15 | Z54: 13 | AA54: 4 | AB54: 6 | AC54: 10 | AD54: 26 | AE54: 7 | AF54: 11 | AG54: 24 | AH54: 8 | AI54: 21
C55: Ordenado de Mayor a Menor | D55: =VLOOKUP($C$54,$C$31:$AI$50,D53,FALSE)+D58/10000000000 -> 26,770,698 | E55: 316,984 | F55: 7,061,980 | G55: 169,567,989 | H55: 8,000,253 | I55: 334,878 | J55: 1,238,000 | K55: 870,463 | L55: 5,899,606 | M55: 363,282 | N55: 24,704,101 | O55: 414,771 | P55: 231,621,464 | Q55: 253,463,697 | R55: 98,534 | S55: 38,746,785 | T55: 472,973 | U55: 1,268,092 | V55: 279,124,764 | W55: 10,675,614 | X55: 6,489,648 | Y55: 10,719,625 | Z55: 26,605,571 | AA55: 199,918,341 | AB55: 118,864,701 | AC55: 33,316,308 | AD55: 681,704 | AE55: 95,264,132 | AF55: 31,481,777 | AG55: 1,154,008 | AH55: 88,800,526 | AI55: 4,697,746
D56: =D29 -> 4 Life Seguros | E56: Alemana Seguros | F56: BCI Seguros Vida | G56: BICE Vida | H56: BNP Paribas Cardif | I56: Bupa | J56: Cámara | K56: CF Seguros de Vida | L56: Chubb Vida | M56: CLC | N56: CN Life | O56: Colmena Seguros | P56: Confuturo | Q56: Consorcio Nacional | R56: Divina Pastora | S56: Euroamérica | T56: Help Seguros | U56: Mapfre Vida | V56: Metlife | W56: Mut de Carabineros | X56: Mut. Ejerc. Y Aviac. | Y56: Mutual de Seguros | Z56: Ohio National | AA56: Penta Vida | AB56: Principal | AC56: Renta Nacional | AD56: Save Seguros | AE56: Security Prevision | AF56: Sura | AG56: Suramericana | AH56: Zurich Chile | AI56: Zurich Santander
C57: Compañía a Destacar | D57: =IF($C$58=D56,D55,0) -> 26,770,698 | E57: 0 | F57: 0 | G57: 0 | H57: 0 | I57: 0 | J57: 0 | K57: 0 | L57: 0 | M57: 0 | N57: 0 | O57: 0 | P57: 0 | Q57: 0 | R57: 0 | S57: 0 | T57: 0 | U57: 0 | V57: 0 | W57: 0 | X57: 0 | Y57: 0 | Z57: 0 | AA57: 0 | AB57: 0 | AC57: 0 | AD57: 0 | AE57: 0 | AF57: 0 | AG57: 0 | AH57: 0 | AI57: 0
C58: 4 Life Seguros | D58: 1 | E58: 2 | F58: 3 | G58: 4 | H58: 5 | I58: 6 | J58: 7 | K58: 8 | L58: 9 | M58: 10 | N58: 11 | O58: 12 | P58: 13 | Q58: 14 | R58: 15 | S58: 16 | T58: 17 | U58: 19 | V58: 20 | W58: 21 | X58: 22 | Y58: 23 | Z58: 24 | AA58: 25 | AB58: 26 | AC58: 27 | AD58: 28 | AE58: 29 | AF58: 30 | AG58: 31 | AH58: 32 | AI58: 33
C59: Ordenado de Mayor a Menor | D59: =HLOOKUP(D58,$D$54:$AI$56,2,FALSE) -> 279,124,764 | E59: 253,463,697 | F59: 231,621,464 | G59: 199,918,341 | H59: 169,567,989 | I59: 118,864,701 | J59: 95,264,132 | K59: 88,800,526 | L59: 38,746,785 | M59: 33,316,308 | N59: 31,481,777 | O59: 26,770,698 | P59: 26,605,571 | Q59: 24,704,101 | R59: 10,719,625 | S59: 10,675,614 | T59: 8,000,253 | U59: 6,489,648 | V59: 5,899,606 | W59: 4,697,746 | X59: 1,268,092 | Y59: 1,238,000 | Z59: 1,154,008 | AA59: 870,463 | AB59: 681,704 | AC59: 472,973 | AD59: 414,771 | AE59: 363,282 | AF59: 334,878 | AG59: 316,984 | AH59: 98,534
C60: Orden Alfabético | D60: =HLOOKUP(D58,$D$54:$AI$56,3,FALSE) -> Metlife | E60: Consorcio Nacional | F60: Confuturo | G60: Penta Vida | H60: BICE Vida | I60: Principal | J60: Security Prevision | K60: Zurich Chile | L60: Euroamérica | M60: Renta Nacional | N60: Sura | O60: 4 Life Seguros | P60: Ohio National | Q60: CN Life | R60: Mutual de Seguros | S60: Mut de Carabineros | T60: BNP Paribas Cardif | U60: Mut. Ejerc. Y Aviac. | V60: Chubb Vida | W60: Zurich Santander | X60: Mapfre Vida | Y60: Cámara | Z60: Suramericana | AA60: CF Seguros de Vida | AB60: Save Seguros | AC60: Help Seguros | AD60: Colmena Seguros | AE60: CLC | AF60: Bupa | AG60: Alemana Seguros | AH60: Divina Pastora
D61: =IF($C$58=D60,D59,0) -> 0 | E61: 0 | F61: 0 | G61: 0 | H61: 0 | I61: 0 | J61: 0 | K61: 0 | L61: 0 | M61: 0 | N61: 0 | O61: 26,770,698 | P61: 0 | Q61: 0 | R61: 0 | S61: 0 | T61: 0 | U61: 0 | V61: 0 | W61: 0 | X61: 0 | Y61: 0 | Z61: 0 | AA61: 0 | AB61: 0 | AC61: 0 | AD61: 0 | AE61: 0 | AF61: 0 | AG61: 0 | AH61: 0
D63: =IF($C$55=$C$59,D60,D56) -> Metlife | E63: Consorcio Nacional | F63: Confuturo | G63: Penta Vida | H63: BICE Vida | I63: Principal | J63: Security Prevision | K63: Zurich Chile | L63: Euroamérica | M63: Renta Nacional | N63: Sura | O63: 4 Life Seguros | P63: Ohio National | Q63: CN Life | R63: Mutual de Seguros | S63: Mut de Carabineros | T63: BNP Paribas Cardif | U63: Mut. Ejerc. Y Aviac. | V63: Chubb Vida | W63: Zurich Santander | X63: Mapfre Vida | Y63: Cámara | Z63: Suramericana | AA63: CF Seguros de Vida | AB63: Save Seguros | AC63: Help Seguros | AD63: Colmena Seguros | AE63: CLC | AF63: Bupa | AG63: Alemana Seguros | AH63: Divina Pastora
D64: =IF($C$55=$C$59,D59,D55) -> 279,124,764 | E64: 253,463,697 | F64: 231,621,464 | G64: 199,918,341 | H64: 169,567,989 | I64: 118,864,701 | J64: 95,264,132 | K64: 88,800,526 | L64: 38,746,785 | M64: 33,316,308 | N64: 31,481,777 | O64: 26,770,698 | P64: 26,605,571 | Q64: 24,704,101 | R64: 10,719,625 | S64: 10,675,614 | T64: 8,000,253 | U64: 6,489,648 | V64: 5,899,606 | W64: 4,697,746 | X64: 1,268,092 | Y64: 1,238,000 | Z64: 1,154,008 | AA64: 870,463 | AB64: 681,704 | AC64: 472,973 | AD64: 414,771 | AE64: 363,282 | AF64: 334,878 | AG64: 316,984 | AH64: 98,534
D65: =IF($C$55=$C$59,D61,D57) -> 0 | E65: 0 | F65: 0 | G65: 0 | H65: 0 | I65: 0 | J65: 0 | K65: 0 | L65: 0 | M65: 0 | N65: 0 | O65: 26,770,698 | P65: 0 | Q65: 0 | R65: 0 | S65: 0 | T65: 0 | U65: 0 | V65: 0 | W65: 0 | X65: 0 | Y65: 0 | Z65: 0 | AA65: 0 | AB65: 0 | AC65: 0 | AD65: 0 | AE65: 0 | AF65: 0 | AG65: 0 | AH65: 0

Sheet base (hidden)
A1: COMISIÓN PARA EL MERCADO FINANCIERO
A2: Tipo de compañía: CIAS. DE SEGUROS DE VIDA Y CIAS. REASEGURADORAS DE VIDA
C6: InstrumentosdelEstado | D6: DepÃ³sitosaplazo | E6: Bonosbancarios | F6: Letrashipotecarias | G6: Bonosydebentures | H6: CrÃ©ditossindicados | I6: Mutuoshipotecarios | J6: AccionesdeS.A. | K6: Fondosmutuos | L6: FondoinversiÃ³n | M6: InversiÃ³nexterior | N6: Cuentascorrientes | O6: Avancetened.depÃ³lizas | P6: Inversionesinmobiliarias | Q6: PrÃ©stamos | R6: Otros(3) | S6: TOTAL
A7: Razón social | B7: TipodecompaÃ±Ã­a | C7: InstrumentosdelEstado | D7: DepÃ³sitosaplazo | E7: Bonosbancarios | F7: Letrashipotecarias | G7: Bonosydebentures | H7: CrÃ©ditossindicados | I7: Mutuoshipotecarios | J7: AccionesdeS.A. | K7: Fondosmutuos | L7: FondoinversiÃ³n | M7: InversiÃ³nexterior | N7: Cuentascorrientes | O7: Avancetened.depÃ³lizas | P7: Inversionesinmobiliarias | Q7: PrÃ©stamos | R7: Otros(3) | S7: TOTAL
A8: 4 Life Seguros | B8: 4LIFE | C8: 23934177 | D8: 1317458 | E8: 78791123 | F8: 540126 | G8: 308129458 | H8: 1690963 | I8: 71463861 | J8: 1753758 | K8: 3845595 | L8: 86577148 | M8: 244543136 | N8: 712703 | P8: 152724937 | R8: 8852412 | S8: 984876855
A9: Alemana Seguros | B9: ALEMANA | C9: 3481234 | E9: 4579709 | G9: 3037039 | K9: 212878 | N9: 176284 | R9: 174507 | S9: 11661651
A10: BCI Seguros Vida | B10: BCI | C10: 1868609 | D10: 3972680 | E10: 84593368 | F10: 46862 | G10: 73753205 | I10: 3380269 | J10: 325023 | K10: 18603788 | L10: 18057356 | M10: 13395329 | N10: 7283618 | P10: 34055012 | R10: 470616 | S10: 259805735
A11: BICE Vida | B11: BICE | C11: 18584926 | D11: 62792478 | E11: 648811181 | F11: 3631726 | G11: 2253487379 | H11: 86489841 | I11: 960768095 | J11: 2253278 | K11: 27938603 | L11: 120907502 | M11: 827779023 | N11: 4317532 | O11: 14309443 | P11: 978526409 | Q11: 65399471 | R11: 162300922 | S11: 6238297809
A12: BNP Paribas Cardif | B12: BNP | C12: 109893646 | D12: 3109061 | E12: 99042291 | F12: 2598 | G12: 64754765 | I12: 132161 | K12: 4059444 | N12: 8433357 | P12: 2932750 | R12: 1964126 | S12: 294324199
A13: Bupa | B13: BUPA VIDA | C13: 6132301 | D13: 1545200 | E13: 4019389 | K13: 514373 | N13: 107506 | R13: 1177 | S13: 12319946
A14: Cámara | B14: CAMARA | C14: 1980367 | E14: 28167755 | G14: 4324633 | K14: 3844554 | N14: 541722 | P14: 5998142 | R14: 688044 | S14: 45545217
A15: CF Seguros de Vida | B15: CF | C15: 20027097 | E15: 11549673 | K15: 10901 | N15: 435098 | R15: 1000 | S15: 32023769
A16: Chubb Vida | B16: CHUBB VIDA | C16: 89402227 | E16: 63482412 | G16: 54528090 | N16: 8934071 | R16: 695912 | S16: 217042712
A17: CLC | B17: CLC | C17: 2314180 | D17: 2890 | E17: 7110419 | F17: 27084 | G17: 3270479 | N17: 625923 | R17: 13938 | S17: 13364913
A18: CN Life | B18: CN LIFE | C18: 1306577 | D18: 1140256 | E18: 40406943 | F18: 157999 | G18: 411456600 | H18: 25028364 | I18: 60457833 | J18: 8761664 | K18: 25719506 | L18: 35342642 | M18: 199258770 | N18: 2365637 | P18: 67188800 | R18: 30256487 | S18: 908848078
A19: Colmena Seguros | B19: COLMENA | C19: 4468977 | D19: 1419 | E19: 6611713 | F19: 21869 | G19: 3772776 | N19: 361372 | R19: 21035 | S19: 15259161
A20: Confuturo | B20: CONFUTURO | C20: 67860131 | D20: 618530028 | E20: 1120330039 | F20: 34675580 | G20: 1776929610 | H20: 200605363 | I20: 369876397 | J20: 39894749 | K20: 69760111 | L20: 224443506 | M20: 1986616971 | N20: 15234319 | O20: 634718 | P20: 1800994771 | Q20: 57325619 | R20: 137493516 | S20: 8521205428
A21: Consorcio Nacional | B21: CONSORCIO NACIONAL | C21: 219300839 | D21: 56747890 | E21: 500978340 | F21: 7542736 | G21: 1945217452 | H21: 231514045 | I21: 819803718 | J21: 237460903 | K21: 752726042 | L21: 271567824 | M21: 2272071686 | N21: 13532408 | O21: 1038350 | P21: 1582138533 | R21: 413126412 | S21: 9324767178
A22: Divina Pastora | B22: DIVINAPASTORA | C22: 1463516 | D22: 441540 | E22: 884699 | N22: 770517 | R22: 64733 | S22: 3625005
A23: EuroAmérica | B23: EUROAMERICA | C23: 132040227 | D23: 26854914 | E23: 7213540 | F23: 429239 | G23: 696805268 | H23: 35309159 | I23: 30050651 | J23: 42781221 | K23: 33436301 | L23: 79479379 | M23: 35549044 | N23: 7077189 | P23: 282465576 | Q23: 2110729 | R23: 13866997 | S23: 1425469434
A24: Help Seguros | B24: HELP SEGUROS | C24: 3059177 | D24: 101534 | E24: 7496463 | G24: 4005429 | M24: 427767 | N24: 2097277 | R24: 212715 | S24: 17400362
A25: MAPFRE vida | B25: MAPFRE | C25: 1003463 | E25: 12000670 | F25: 1745347 | G25: 27689145 | K25: 150736 | L25: 1985427 | N25: 796447 | P25: 1268189 | R25: 12861 | S25: 46652285
A26: METLIFE | B26: METLIFE | C26: 485673858 | E26: 1074596825 | F26: 8159380 | G26: 2476369557 | H26: 262754598 | I26: 1915326527 | K26: 170602133 | L26: 184700614 | M26: 1843017175 | N26: 21033260 | O26: 4231434 | P26: 1557727752 | Q26: 91907148 | R26: 172721170 | S26: 10268821431
A27: MUT DE CARABINEROS | B27: MUT DE CARABINEROS | C27: 4815982 | D27: 139558884 | E27: 4640946 | G27: 108975 | K27: 15526223 | N27: 3049048 | P27: 145423650 | Q27: 79505953 | R27: 119359 | S27: 392749020
A28: MUT. EJERC. Y AVIAC. | B28: MUT. EJERC. Y AVIAC. | C28: 2878965 | D28: 9537591 | E28: 42795586 | F28: 585832 | G28: 34690766 | J28: 1304710 | K28: 9620064 | L28: 1262820 | M28: 3003680 | N28: 530586 | P28: 4271150 | Q28: 127810367 | R28: 457870 | S28: 238749987
A29: MUTUAL DE SEGUROS | B29: MUTUAL DE SEGUROS | C29: 10559909 | E29: 51767849 | F29: 6875 | G29: 110470842 | I29: 51749832 | J29: 1088503 | K29: 4778651 | L29: 3939645 | M29: 7430692 | N29: 947258 | O29: 1659792 | P29: 135125682 | Q29: 11265244 | R29: 3577363 | S29: 394368137
A30: OHIO national | B30: OHIO | C30: 8836 | D30: 31972885 | E30: 231814923 | F30: 25041411 | G30: 377540964 | I30: 80224544 | K30: 31327736 | L30: 7276297 | M30: 67033455 | N30: 3965255 | O30: 1276071 | P30: 116322526 | Q30: 2365899 | R30: 2631118 | S30: 978801920
A31: PENTA vida | B31: PENTA | C31: 209682433 | D31: 123948994 | E31: 504202104 | F31: 23826142 | G31: 1707611041 | H31: 194715578 | I31: 697763745 | J31: 43639873 | K31: 7457738 | L31: 800796901 | M31: 1434591813 | N31: 657279 | P31: 1303175052 | Q31: 60947831 | R31: 241851284 | S31: 7354867808
A32: PRINCIPAL | B32: PRINCIPAL | C32: 48539318 | D32: 48932446 | E32: 631082773 | F32: 34044670 | G32: 978027900 | H32: 104373003 | I32: 845416290 | K32: 191238403 | L32: 156854263 | M32: 713372138 | N32: 1642089 | P32: 555093678 | Q32: 14095731 | R32: 50243565 | S32: 4372956267
A33: RENTA NACIONAL | B33: RENTA NACIONAL | C33: 8708320 | D33: 17322647 | E33: 319167853 | F33: 10986930 | G33: 501492934 | I33: 88122345 | J33: 134026 | K33: 14819938 | L33: 1093060 | N33: 2915410 | P33: 254452044 | Q33: 4236635 | R33: 2233518 | S33: 1225685660
A34: SAVE SEGUROS | B34: SAVE BCJ | C34: 2288466 | D34: 4714603 | G34: 12355084 | K34: 56715 | L34: 2688978 | N34: 1870799 | P34: 999673 | R34: 105146 | S34: 25079464
A35: SECURITY PREVISION | B35: SECURITY PREVISION | C35: 56434086 | D35: 6979508 | E35: 362685183 | F35: 23720227 | G35: 989425683 | H35: 56554536 | I35: 425074412 | J35: 12384745 | K35: 246693899 | L35: 258864832 | M35: 500225292 | N35: 1869610 | O35: 242743 | P35: 410380023 | Q35: 10318251 | R35: 142853409 | S35: 3504706439
A36: SURA | B36: SURA | C36: 51293624 | D36: 3651050 | E36: 102679244 | F36: 209684 | G36: 153617546 | I36: 4193938 | K36: 455975835 | L36: 23772753 | M36: 311070325 | N36: 1350646 | O36: 2367672 | P36: 46238537 | R36: 1773566 | S36: 1158194420
A37: SURAMERICANA | B37: SURAMERICANA V | C37: 6350518 | E37: 27069407 | G37: 6627964 | N37: 2311032 | R37: 96281 | S37: 42455202
A38: ZURICH CHILE | B38: ZURICH CHILE V | C38: 132237349 | D38: 55484573 | E38: 242528362 | F38: 25674 | G38: 1302086576 | H38: 13349887 | I38: 315732377 | K38: 289337602 | L38: 26588603 | M38: 225172057 | N38: 10929964 | O38: 1478557 | P38: 606864210 | Q38: 456549 | R38: 44642178 | S38: 3266914518
A39: ZURICH SANTANDER | B39: ZURICH SANTANDER | C39: 10478158 | D39: 6513371 | E39: 9815811 | F39: 4091997 | G39: 75943495 | I39: 17459435 | K39: 7480823 | L39: 6120282 | M39: 8387640 | N39: 3959192 | P39: 23187504 | R39: -610640 | S39: 172827068
A40: TOTAL CIAS. DE SEGUROS DE VIDA | B40: TOTAL CIAS. DE SEGUROS DE VIDA | S40: =SUM(S8:S39) -> 61769667078
A41: CAJA REASEGURADORA | B41: CAJA REASEGURADORA
A42: TOTAL CIAS. REASEGURADORAS DE VIDA | B42: TOTAL CIAS. REASEGURADORAS DE VIDA
A43: TOTAL MERCADO | B43: TOTAL MERCADO
A47: (1) Tipo A=Seguros Generales; Tipo R=Reaseguradoras.
A48: (2) Cifras en miles de pesos
A49: (3) Incluye acciones de S.A. cerradas, muebles y útiles, caja, derechos por inversiones en instrumentos derivados.
